Workbook

Sheet HypoTests
B1: Simulating Hypothesis Testing
C3: This program generates 80 random samples from
C4: various population patterns and compares the
C5: sample means to m as a set of
C6: two-sided hypothesis tests.
A8: Which population do you want?
D9: 2 | H9: 1
A14: What is the level of significance a?
D15: 4
D16: 2 | H16: 1 | I16: 3
A23: The mean and standard deviation | E23: m = | F23: =IF(pop=1,Sheet2!B2,IF(pop=2,Sheet2!E2,IF(pop=3,Sheet2!G2,Sheet2!I2))) -> 68.07
B24: of the sampling distribution are: | E24: s = | F24: =IF(pop=1,Sheet2!C3,IF(pop=2,Sheet2!F3,IF(pop=3,Sheet2!H3,Sheet2!J3))) -> 0.402
A26: =" " &Sheet4!I27&" of the 80 random sample means, or "&TEXT(Sheet4!J27,"0.00%")&", " -> 1 of the 80 random sample means, or 1.25%,
B27: ="based on samples of size 50 from the "&TEXT(pop_name,"")&" population" -> based on samples of size 50 from the normal population
B28: ="fell in the rejection region at the "&TEXT(Sheet4!J24,"0%")&" significance level." -> fell in the rejection region at the 2% significance level.
C31: Run a New Random Sample | E31: FALSE
A35: Click each item below for suggestions and investigations
C36: Item 1
C37: Item 2
C38: Item 3
C39: Item 4
C40: Item 5
A43: To access/download all the DIGMath Apps for Statistics
C44: Click this link: | D44: DIGMath for Statistics and Probability
A46: Created by: Sheldon P. Gordon & Florence S. Gordon © 2025
A47: Farmingdale State College NYIT
A48: Development of this module was supported by the
A49: NSF's Division of Undergraduate Education
A50: under grants DUE-0310123 and DUE-0442160.

Sheet Sheet2
B1: Normal data | E1: Uniform data | G1: U-shaped | I1: Skewed data | L1: Pop
A2: mu, sigma,n= | B2: =AVERAGE(B5:B424) -> 68.06666667 | E2: 68.47 | G2: 68.61 | I2: 71.19
B3: =_xlfn.STDEV.P(B5:B424420) -> 2.842757436 | C3: =B3/SQRT(50) -> 0.4020266121 | E3: 4.162 | F3: =E3/SQRT(50) -> 0.5885956847 | G3: 4.801 | H3: =G3/SQRT(50) -> 0.6789639313 | I3: 3.291 | J3: =I3/SQRT(50) -> 0.4654176834
B4: 420 | E4: 424 | G4: 397 | I4: 410
A5: 1 | B5: 61 | C5: 61 | D5: 4 | E5: 61 | F5: =COUNTIF(E$5:E$502,"=61") -> 23 | G5: 61 | H5: =COUNTIF(G$5:G$502,"=61") -> 18 | I5: 61 | J5: =COUNTIF(I$5:I$502,"=61") -> 3 | L5: =IF(pop=1,D5,IF(pop=2,F5, IF(pop=3,H5,J5))) -> 4
A6: 2 | B6: 61 | C6: 62 | D6: 12 | E6: 61 | F6: =COUNTIF(E$5:E$502,"=62") -> 28 | G6: 61 | H6: =COUNTIF(G$5:G$502,"=62") -> 22 | I6: 61 | J6: =COUNTIF(I$5:I$502,"=62") -> 5 | L6: =IF(pop=1,D6,IF(pop=2,F6, IF(pop=3,H6,J6))) -> 12
A7: 3 | B7: 61 | C7: 63 | D7: 6 | E7: 61 | F7: =COUNTIF(E$5:E$502,"=63") -> 19 | G7: 61 | H7: =COUNTIF(G$5:G$502,"=63") -> 35 | I7: 61 | J7: =COUNTIF(I$5:I$502,"=63") -> 6 | L7: =IF(pop=1,D7,IF(pop=2,F7, IF(pop=3,H7,J7))) -> 6
A8: 4 | B8: 61 | C8: 64 | D8: 16 | E8: 61 | F8: =COUNTIF(E$5:E$502,"=64") -> 24 | G8: 61 | H8: =COUNTIF(G$5:G$502,"=64") -> 44 | I8: 62 | J8: =COUNTIF(I$5:I$502,"=64") -> 15 | L8: =IF(pop=1,D8,IF(pop=2,F8, IF(pop=3,H8,J8))) -> 16
A9: 5 | B9: 62 | C9: 65 | D9: 28 | E9: 61 | F9: =COUNTIF(E$5:E$502,"=65") -> 25 | G9: 61 | H9: =COUNTIF(G$5:G$502,"=65") -> 36 | I9: 62 | J9: =COUNTIF(I$5:I$502,"=65") -> 11 | L9: =IF(pop=1,D9,IF(pop=2,F9, IF(pop=3,H9,J9))) -> 28
A10: 6 | B10: 62 | C10: 66 | D10: 54 | E10: 61 | F10: =COUNTIF(E$5:E$502,"=66") -> 27 | G10: 61 | H10: =COUNTIF(G$5:G$502,"=66") -> 21 | I10: 62 | J10: =COUNTIF(I$5:I$502,"=66") -> 10 | L10: =IF(pop=1,D10,IF(pop=2,F10, IF(pop=3,H10,J10))) -> 54
A11: 7 | B11: 62 | C11: 67 | D11: 60 | E11: 61 | F11: =COUNTIF(E$5:E$502,"=67") -> 21 | G11: 61 | H11: =COUNTIF(G$5:G$502,"=67") -> 7 | I11: 62 | J11: =COUNTIF(I$5:I$502,"=67") -> 15 | L11: =IF(pop=1,D11,IF(pop=2,F11, IF(pop=3,H11,J11))) -> 60
A12: 8 | B12: 62 | C12: 68 | D12: 70 | E12: 61 | F12: =COUNTIF(E$5:E$502,"=68") -> 29 | G12: 61 | H12: =COUNTIF(G$5:G$502,"=68") -> 8 | I12: 62 | J12: =COUNTIF(I$5:I$502,"=68") -> 14 | L12: =IF(pop=1,D12,IF(pop=2,F12, IF(pop=3,H12,J12))) -> 70
A13: 9 | B13: 62 | C13: 69 | D13: 56 | E13: 61 | F13: =COUNTIF(E$5:E$502,"=69") -> 34 | G13: 61 | H13: =COUNTIF(G$5:G$502,"=69") -> 9 | I13: 63 | J13: =COUNTIF(I$5:I$502,"=69") -> 23 | L13: =IF(pop=1,D13,IF(pop=2,F13, IF(pop=3,H13,J13))) -> 56
A14: 10 | B14: 62 | C14: 70 | D14: 32 | E14: 61 | F14: =COUNTIF(E$5:E$502,"=70") -> 29 | G14: 61 | H14: =COUNTIF(G$5:G$502,"=70") -> 10 | I14: 63 | J14: =COUNTIF(I$5:I$502,"=70") -> 20 | L14: =IF(pop=1,D14,IF(pop=2,F14, IF(pop=3,H14,J14))) -> 32
A15: 11 | B15: 62 | C15: 71 | D15: 28 | E15: 61 | F15: =COUNTIF(E$5:E$502,"=71") -> 44 | G15: 61 | H15: =COUNTIF(G$5:G$502,"=71") -> 24 | I15: 63 | J15: =COUNTIF(I$5:I$502,"=71") -> 54 | L15: =IF(pop=1,D15,IF(pop=2,F15, IF(pop=3,H15,J15))) -> 28
A16: 12 | B16: 62 | C16: 72 | D16: 20 | E16: 61 | F16: =COUNTIF(E$5:E$502,"=72") -> 37 | G16: 61 | H16: =COUNTIF(G$5:G$502,"=72") -> 34 | I16: 63 | J16: =COUNTIF(I$5:I$502,"=72") -> 58 | L16: =IF(pop=1,D16,IF(pop=2,F16, IF(pop=3,H16,J16))) -> 20
A17: 13 | B17: 62 | C17: 73 | D17: 18 | E17: 61 | F17: =COUNTIF(E$5:E$502,"=73") -> 28 | G17: 61 | H17: =COUNTIF(G$5:G$502,"=73") -> 45 | I17: 63 | J17: =COUNTIF(I$5:I$502,"=73") -> 60 | L17: =IF(pop=1,D17,IF(pop=2,F17, IF(pop=3,H17,J17))) -> 18
A18: 14 | B18: 62 | C18: 74 | D18: 12 | E18: 61 | F18: =COUNTIF(E$5:E$502,"=74") -> 35 | G18: 61 | H18: =COUNTIF(G$5:G$502,"=74") -> 41 | I18: 63 | J18: =COUNTIF(I$5:I$502,"=74") -> 54 | L18: =IF(pop=1,D18,IF(pop=2,F18, IF(pop=3,H18,J18))) -> 12
A19: 15 | B19: 62 | C19: 75 | D19: 4 | E19: 61 | F19: =COUNTIF(E$5:E$502,"=75") -> 21 | G19: 61 | H19: =COUNTIF(G$5:G$502,"=75") -> 43 | I19: 64 | J19: =COUNTIF(I$5:I$502,"=75") -> 62 | L19: =IF(pop=1,D19,IF(pop=2,F19, IF(pop=3,H19,J19))) -> 4
A20: 16 | B20: 62 | E20: 61 | G20: 61 | I20: 64
A21: 17 | B21: 63 | E21: 61 | G21: 61 | I21: 64
A22: 18 | B22: 63 | E22: 61 | G22: 61 | I22: 64
A23: 19 | B23: 63 | E23: 61 | G23: 62 | I23: 64
A24: 20 | B24: 63 | E24: 61 | G24: 62 | I24: 64
A25: 21 | B25: 63 | E25: 61 | G25: 62 | I25: 64
A26: 22 | B26: 63 | E26: 61 | G26: 62 | I26: 64
A27: 23 | B27: 64 | E27: 61 | G27: 62 | I27: 64
A28: 24 | B28: 64 | E28: 62 | G28: 62 | I28: 64
A29: 25 | B29: 64 | E29: 62 | G29: 62 | I29: 64
A30: 26 | B30: 64 | E30: 62 | G30: 62 | I30: 64
A31: 27 | B31: 64 | E31: 62 | G31: 62 | I31: 64
A32: 28 | B32: 64 | E32: 62 | G32: 62 | I32: 64
A33: 29 | B33: 64 | E33: 62 | G33: 62 | I33: 64
A34: 30 | B34: 64 | E34: 62 | G34: 62 | I34: 65
A35: 31 | B35: 64 | E35: 62 | G35: 62 | I35: 65
A36: 32 | B36: 64 | E36: 62 | G36: 62 | I36: 65
A37: 33 | B37: 64 | E37: 62 | G37: 62 | I37: 65
A38: 34 | B38: 64 | E38: 62 | G38: 62 | I38: 65
A39: 35 | B39: 64 | E39: 62 | G39: 62 | I39: 65
A40: 36 | B40: 64 | E40: 62 | G40: 62 | I40: 65
A41: 37 | B41: 64 | E41: 62 | G41: 62 | I41: 65
A42: 38 | B42: 64 | E42: 62 | G42: 62 | I42: 65
A43: 39 | B43: 65 | E43: 62 | G43: 62 | I43: 65
A44: 40 | B44: 65 | E44: 62 | G44: 62 | I44: 65
A45: 41 | B45: 65 | E45: 62 | G45: 63 | I45: 66
A46: 42 | B46: 65 | E46: 62 | G46: 63 | I46: 66
A47: 43 | B47: 65 | E47: 62 | G47: 63 | I47: 66
A48: 44 | B48: 65 | E48: 62 | G48: 63 | I48: 66
A49: 45 | B49: 65 | E49: 62 | G49: 63 | I49: 66
A50: 46 | B50: 65 | E50: 62 | G50: 63 | I50: 66
A51: 47 | B51: 65 | E51: 62 | G51: 63 | I51: 66
A52: 48 | B52: 65 | E52: 62 | G52: 63 | I52: 66
A53: 49 | B53: 65 | E53: 62 | G53: 63 | I53: 66
A54: 50 | B54: 65 | E54: 62 | G54: 63 | I54: 66
A55: 51 | B55: 65 | E55: 62 | G55: 63 | I55: 67
A56: 52 | B56: 65 | E56: 63 | G56: 63 | I56: 67
A57: 53 | B57: 65 | E57: 63 | G57: 63 | I57: 67
A58: 54 | B58: 65 | E58: 63 | G58: 63 | I58: 67
A59: 55 | B59: 65 | E59: 63 | G59: 63 | I59: 67
A60: 56 | B60: 65 | E60: 63 | G60: 63 | I60: 67
A61: 57 | B61: 65 | E61: 63 | G61: 63 | I61: 67
A62: 58 | B62: 65 | E62: 63 | G62: 63 | I62: 67
A63: 59 | B63: 65 | E63: 63 | G63: 63 | I63: 67
A64: 60 | B64: 65 | E64: 63 | G64: 63 | I64: 67
A65: 61 | B65: 65 | E65: 63 | G65: 63 | I65: 67
A66: 62 | B66: 65 | E66: 63 | G66: 63 | I66: 67
A67: 63 | B67: 65 | E67: 63 | G67: 63 | I67: 67
A68: 64 | B68: 65 | E68: 63 | G68: 63 | I68: 67
A69: 65 | B69: 65 | E69: 63 | G69: 63 | I69: 67
A70: 66 | B70: 65 | E70: 63 | G70: 63 | I70: 68
A71: 67 | B71: 66 | E71: 63 | G71: 63 | I71: 68
A72: 68 | B72: 66 | E72: 63 | G72: 63 | I72: 68
A73: 69 | B73: 66 | E73: 63 | G73: 63 | I73: 68
A74: 70 | B74: 66 | E74: 63 | G74: 63 | I74: 68
A75: 71 | B75: 66 | E75: 64 | G75: 63 | I75: 68
A76: 72 | B76: 66 | E76: 64 | G76: 63 | I76: 68
A77: 73 | B77: 66 | E77: 64 | G77: 63 | I77: 68
A78: 74 | B78: 66 | E78: 64 | G78: 63 | I78: 68
A79: 75 | B79: 66 | E79: 64 | G79: 63 | I79: 68
A80: 76 | B80: 66 | E80: 64 | G80: 64 | I80: 68
A81: 77 | B81: 66 | E81: 64 | G81: 64 | I81: 68
A82: 78 | B82: 66 | E82: 64 | G82: 64 | I82: 68
A83: 79 | B83: 66 | E83: 64 | G83: 64 | I83: 68
A84: 80 | B84: 66 | E84: 64 | G84: 64 | I84: 69
A85: 81 | B85: 66 | E85: 64 | G85: 64 | I85: 69
A86: 82 | B86: 66 | E86: 64 | G86: 64 | I86: 69
A87: 83 | B87: 66 | E87: 64 | G87: 64 | I87: 69
A88: 84 | B88: 66 | E88: 64 | G88: 64 | I88: 69
A89: 85 | B89: 66 | E89: 64 | G89: 64 | I89: 69
A90: 86 | B90: 66 | E90: 64 | G90: 64 | I90: 69
A91: 87 | B91: 66 | E91: 64 | G91: 64 | I91: 69
A92: 88 | B92: 66 | E92: 64 | G92: 64 | I92: 69
A93: 89 | B93: 66 | E93: 64 | G93: 64 | I93: 69
A94: 90 | B94: 66 | E94: 64 | G94: 64 | I94: 69
A95: 91 | B95: 66 | E95: 64 | G95: 64 | I95: 69
A96: 92 | B96: 66 | E96: 64 | G96: 64 | I96: 69
A97: 93 | B97: 66 | E97: 64 | G97: 64 | I97: 69
A98: 94 | B98: 66 | E98: 64 | G98: 64 | I98: 69
A99: 95 | B99: 66 | E99: 65 | G99: 64 | I99: 69
A100: 96 | B100: 66 | E100: 65 | G100: 64 | I100: 69
A101: 97 | B101: 66 | E101: 65 | G101: 64 | I101: 69
A102: 98 | B102: 66 | E102: 65 | G102: 64 | I102: 69
A103: 99 | B103: 66 | E103: 65 | G103: 64 | I103: 69
A104: 100 | B104: 66 | E104: 65 | G104: 64 | I104: 69
A105: 101 | B105: 66 | E105: 65 | G105: 64 | I105: 69
A106: 102 | B106: 66 | E106: 65 | G106: 64 | I106: 69
A107: 103 | B107: 66 | E107: 65 | G107: 64 | I107: 70
A108: 104 | B108: 66 | E108: 65 | G108: 64 | I108: 70
A109: 105 | B109: 66 | E109: 65 | G109: 64 | I109: 70
A110: 106 | B110: 66 | E110: 65 | G110: 64 | I110: 70
A111: 107 | B111: 66 | E111: 65 | G111: 64 | I111: 70
A112: 108 | B112: 66 | E112: 65 | G112: 64 | I112: 70
A113: 109 | B113: 66 | E113: 65 | G113: 64 | I113: 70
A114: 110 | B114: 66 | E114: 65 | G114: 64 | I114: 70
A115: 111 | B115: 66 | E115: 65 | G115: 64 | I115: 70
A116: 112 | B116: 66 | E116: 65 | G116: 64 | I116: 70
A117: 113 | B117: 66 | E117: 65 | G117: 64 | I117: 70
A118: 114 | B118: 66 | E118: 65 | G118: 64 | I118: 70
A119: 115 | B119: 66 | E119: 65 | G119: 64 | I119: 70
A120: 116 | B120: 66 | E120: 65 | G120: 64 | I120: 70
A121: 117 | B121: 66 | E121: 65 | G121: 64 | I121: 70
A122: 118 | B122: 66 | E122: 65 | G122: 64 | I122: 70
A123: 119 | B123: 66 | E123: 65 | G123: 64 | I123: 70
A124: 120 | B124: 66 | E124: 66 | G124: 65 | I124: 70
A125: 121 | B125: 67 | E125: 66 | G125: 65 | I125: 70
A126: 122 | B126: 67 | E126: 66 | G126: 65 | I126: 70
A127: 123 | B127: 67 | E127: 66 | G127: 65 | I127: 71
A128: 124 | B128: 67 | E128: 66 | G128: 65 | I128: 71
A129: 125 | B129: 67 | E129: 66 | G129: 65 | I129: 71
A130: 126 | B130: 67 | E130: 66 | G130: 65 | I130: 71
A131: 127 | B131: 67 | E131: 66 | G131: 65 | I131: 71
A132: 128 | B132: 67 | E132: 66 | G132: 65 | I132: 71
A133: 129 | B133: 67 | E133: 66 | G133: 65 | I133: 71
A134: 130 | B134: 67 | E134: 66 | G134: 65 | I134: 71
A135: 131 | B135: 67 | E135: 66 | G135: 65 | I135: 71
A136: 132 | B136: 67 | E136: 66 | G136: 65 | I136: 71
A137: 133 | B137: 67 | E137: 66 | G137: 65 | I137: 71
A138: 134 | B138: 67 | E138: 66 | G138: 65 | I138: 71
A139: 135 | B139: 67 | E139: 66 | G139: 65 | I139: 71
A140: 136 | B140: 67 | E140: 66 | G140: 65 | I140: 71
A141: 137 | B141: 67 | E141: 66 | G141: 65 | I141: 71
A142: 138 | B142: 67 | E142: 66 | G142: 65 | I142: 71
A143: 139 | B143: 67 | E143: 66 | G143: 65 | I143: 71
A144: 140 | B144: 67 | E144: 66 | G144: 65 | I144: 71
A145: 141 | B145: 67 | E145: 66 | G145: 65 | I145: 71
A146: 142 | B146: 67 | E146: 66 | G146: 65 | I146: 71
A147: 143 | B147: 67 | E147: 66 | G147: 65 | I147: 71
A148: 144 | B148: 67 | E148: 66 | G148: 65 | I148: 71
A149: 145 | B149: 67 | E149: 66 | G149: 65 | I149: 71
A150: 146 | B150: 67 | E150: 66 | G150: 65 | I150: 71
A151: 147 | B151: 67 | E151: 67 | G151: 65 | I151: 71
A152: 148 | B152: 67 | E152: 67 | G152: 65 | I152: 71
A153: 149 | B153: 67 | E153: 67 | G153: 65 | I153: 71
A154: 150 | B154: 67 | E154: 67 | G154: 65 | I154: 71
A155: 151 | B155: 67 | E155: 67 | G155: 65 | I155: 71
A156: 152 | B156: 67 | E156: 67 | G156: 65 | I156: 71
A157: 153 | B157: 67 | E157: 67 | G157: 65 | I157: 71
A158: 154 | B158: 67 | E158: 67 | G158: 65 | I158: 71
A159: 155 | B159: 67 | E159: 67 | G159: 65 | I159: 71
A160: 156 | B160: 67 | E160: 67 | G160: 66 | I160: 71
A161: 157 | B161: 67 | E161: 67 | G161: 66 | I161: 71
A162: 158 | B162: 67 | E162: 67 | G162: 66 | I162: 71
A163: 159 | B163: 67 | E163: 67 | G163: 66 | I163: 71
A164: 160 | B164: 67 | E164: 67 | G164: 66 | I164: 71
A165: 161 | B165: 67 | E165: 67 | G165: 66 | I165: 71
A166: 162 | B166: 67 | E166: 67 | G166: 66 | I166: 71
A167: 163 | B167: 67 | E167: 67 | G167: 66 | I167: 71
A168: 164 | B168: 67 | E168: 67 | G168: 66 | I168: 71
A169: 165 | B169: 67 | E169: 67 | G169: 66 | I169: 71
A170: 166 | B170: 67 | E170: 67 | G170: 66 | I170: 71
A171: 167 | B171: 67 | E171: 67 | G171: 66 | I171: 71
A172: 168 | B172: 67 | E172: 68 | G172: 66 | I172: 71
A173: 169 | B173: 67 | E173: 68 | G173: 66 | I173: 71
A174: 170 | B174: 67 | E174: 68 | G174: 66 | I174: 71
A175: 171 | B175: 67 | E175: 68 | G175: 66 | I175: 71
A176: 172 | B176: 67 | E176: 68 | G176: 66 | I176: 71
A177: 173 | B177: 67 | E177: 68 | G177: 66 | I177: 71
A178: 174 | B178: 67 | E178: 68 | G178: 66 | I178: 71
A179: 175 | B179: 67 | E179: 68 | G179: 66 | I179: 71
A180: 176 | B180: 67 | E180: 68 | G180: 66 | I180: 71
A181: 177 | B181: 67 | E181: 68 | G181: 67 | I181: 72
A182: 178 | B182: 67 | E182: 68 | G182: 67 | I182: 72
A183: 179 | B183: 67 | E183: 68 | G183: 67 | I183: 72
A184: 180 | B184: 67 | E184: 68 | G184: 67 | I184: 72
A185: 181 | B185: 68 | E185: 68 | G185: 67 | I185: 72
A186: 182 | B186: 68 | E186: 68 | G186: 67 | I186: 72
A187: 183 | B187: 68 | E187: 68 | G187: 67 | I187: 72
A188: 184 | B188: 68 | E188: 68 | G188: 68 | I188: 72
A189: 185 | B189: 68 | E189: 68 | G189: 68 | I189: 72
A190: 186 | B190: 68 | E190: 68 | G190: 68 | I190: 72
A191: 187 | B191: 68 | E191: 68 | G191: 68 | I191: 72
A192: 188 | B192: 68 | E192: 68 | G192: 68 | I192: 72
A193: 189 | B193: 68 | E193: 68 | G193: 68 | I193: 72
A194: 190 | B194: 68 | E194: 68 | G194: 68 | I194: 72
A195: 191 | B195: 68 | E195: 68 | G195: 68 | I195: 72
A196: 192 | B196: 68 | E196: 68 | G196: 69 | I196: 72
A197: 193 | B197: 68 | E197: 68 | G197: 69 | I197: 72
A198: 194 | B198: 68 | E198: 68 | G198: 69 | I198: 72
A199: 195 | B199: 68 | E199: 68 | G199: 69 | I199: 72
A200: 196 | B200: 68 | E200: 68 | G200: 69 | I200: 72
... 228 more rows

Sheet samples
A1: =sampx(pop, popsize,newSample) -> 67 | B1: 74 | C1: 62 | D1: 69 | E1: 64 | F1: 73 | G1: 68 | H1: 74 | I1: 66 | J1: 68 | K1: =sampx(pop, popsize,newSample) -> 62 | L1: 68 | M1: 66 | N1: 72 | O1: 67 | P1: 68 | Q1: 67 | R1: 69 | S1: 64 | T1: 70 | U1: =sampx(pop, popsize,newSample) -> 67 | V1: 69 | W1: 70 | X1: 70 | Y1: 64 | Z1: 70 | AA1: 70 | AB1: 72 | AC1: 74 | AD1: 66 | AE1: =sampx(pop, popsize,newSample) -> 69 | AF1: 68 | AG1: 69 | AH1: 65 | AI1: 68 | AJ1: 69 | AK1: 70 | AL1: 67 | AM1: 61 | AN1: 69 | AO1: =sampx(pop, popsize,newSample) -> 70 | AP1: 68 | AQ1: 73 | AR1: 71 | AS1: 74 | AT1: 67 | AU1: 70 | AV1: 70 | AW1: 75 | AX1: 64 | AY1: =sampx(pop, popsize,newSample) -> 66 | AZ1: 66 | BA1: 69 | BB1: 61 | BC1: 68 | BD1: 68 | BE1: 69 | BF1: 62 | BG1: 74 | BH1: 73 | BI1: =sampx(pop, popsize,newSample) -> 67 | BJ1: 67 | BK1: 66 | BL1: 66 | BM1: 69 | BN1: 73 | BO1: 71 | BP1: 71 | BQ1: 67 | BR1: 69 | BS1: =sampx(pop, popsize,newSample) -> 62 | BT1: 66 | BU1: 70 | BV1: 68 | BW1: 71 | BX1: 64 | BY1: 74 | BZ1: 71 | CA1: 68 | CB1: 67
A2: 73 | B2: 67 | C2: 64 | D2: 71 | E2: 70 | F2: 67 | G2: 72 | H2: 64 | I2: 71 | J2: 72 | K2: 70 | L2: 68 | M2: 66 | N2: 68 | O2: 72 | P2: 68 | Q2: 65 | R2: 66 | S2: 62 | T2: 69 | U2: 68 | V2: 64 | W2: 64 | X2: 69 | Y2: 72 | Z2: 64 | AA2: 68 | AB2: 68 | AC2: 66 | AD2: 68 | AE2: 66 | AF2: 66 | AG2: 66 | AH2: 66 | AI2: 69 | AJ2: 62 | AK2: 73 | AL2: 66 | AM2: 63 | AN2: 68 | AO2: 72 | AP2: 70 | AQ2: 71 | AR2: 65 | AS2: 68 | AT2: 71 | AU2: 71 | AV2: 71 | AW2: 64 | AX2: 69 | AY2: 71 | AZ2: 68 | BA2: 72 | BB2: 67 | BC2: 68 | BD2: 68 | BE2: 66 | BF2: 71 | BG2: 68 | BH2: 68 | BI2: 69 | BJ2: 67 | BK2: 69 | BL2: 69 | BM2: 72 | BN2: 68 | BO2: 70 | BP2: 67 | BQ2: 70 | BR2: 65 | BS2: 73 | BT2: 69 | BU2: 73 | BV2: 69 | BW2: 63 | BX2: 66 | BY2: 69 | BZ2: 71 | CA2: 73 | CB2: 65
A3: 67 | B3: 69 | C3: 68 | D3: 64 | E3: 74 | F3: 72 | G3: 68 | H3: 66 | I3: 69 | J3: 68 | K3: 70 | L3: 71 | M3: 73 | N3: 71 | O3: 69 | P3: 68 | Q3: 66 | R3: 67 | S3: 66 | T3: 65 | U3: 67 | V3: 69 | W3: 65 | X3: 70 | Y3: 63 | Z3: 68 | AA3: 66 | AB3: 68 | AC3: 65 | AD3: 74 | AE3: 63 | AF3: 67 | AG3: 66 | AH3: 69 | AI3: 70 | AJ3: 70 | AK3: 71 | AL3: 65 | AM3: 69 | AN3: 74 | AO3: 72 | AP3: 65 | AQ3: 66 | AR3: 68 | AS3: 69 | AT3: 68 | AU3: 69 | AV3: 68 | AW3: 73 | AX3: 73 | AY3: 68 | AZ3: 66 | BA3: 73 | BB3: 66 | BC3: 71 | BD3: 70 | BE3: 68 | BF3: 64 | BG3: 68 | BH3: 68 | BI3: 64 | BJ3: 71 | BK3: 66 | BL3: 69 | BM3: 65 | BN3: 65 | BO3: 67 | BP3: 71 | BQ3: 69 | BR3: 72 | BS3: 69 | BT3: 62 | BU3: 72 | BV3: 66 | BW3: 62 | BX3: 66 | BY3: 67 | BZ3: 64 | CA3: 68 | CB3: 73
A4: 68 | B4: 70 | C4: 67 | D4: 61 | E4: 71 | F4: 69 | G4: 70 | H4: 64 | I4: 67 | J4: 69 | K4: 64 | L4: 66 | M4: 69 | N4: 67 | O4: 67 | P4: 74 | Q4: 69 | R4: 69 | S4: 66 | T4: 73 | U4: 68 | V4: 72 | W4: 72 | X4: 68 | Y4: 69 | Z4: 70 | AA4: 72 | AB4: 74 | AC4: 73 | AD4: 66 | AE4: 68 | AF4: 70 | AG4: 68 | AH4: 68 | AI4: 62 | AJ4: 67 | AK4: 65 | AL4: 67 | AM4: 69 | AN4: 72 | AO4: 73 | AP4: 71 | AQ4: 69 | AR4: 72 | AS4: 63 | AT4: 72 | AU4: 68 | AV4: 67 | AW4: 71 | AX4: 68 | AY4: 69 | AZ4: 71 | BA4: 69 | BB4: 67 | BC4: 67 | BD4: 68 | BE4: 70 | BF4: 73 | BG4: 65 | BH4: 72 | BI4: 67 | BJ4: 71 | BK4: 65 | BL4: 66 | BM4: 68 | BN4: 66 | BO4: 73 | BP4: 72 | BQ4: 62 | BR4: 67 | BS4: 68 | BT4: 68 | BU4: 69 | BV4: 71 | BW4: 65 | BX4: 67 | BY4: 67 | BZ4: 67 | CA4: 72 | CB4: 68
A5: 67 | B5: 67 | C5: 68 | D5: 70 | E5: 68 | F5: 63 | G5: 64 | H5: 70 | I5: 70 | J5: 66 | K5: 62 | L5: 72 | M5: 68 | N5: 68 | O5: 68 | P5: 69 | Q5: 67 | R5: 71 | S5: 66 | T5: 66 | U5: 68 | V5: 68 | W5: 71 | X5: 64 | Y5: 65 | Z5: 69 | AA5: 64 | AB5: 73 | AC5: 68 | AD5: 65 | AE5: 65 | AF5: 71 | AG5: 72 | AH5: 74 | AI5: 70 | AJ5: 68 | AK5: 69 | AL5: 68 | AM5: 66 | AN5: 71 | AO5: 65 | AP5: 69 | AQ5: 69 | AR5: 70 | AS5: 72 | AT5: 73 | AU5: 64 | AV5: 72 | AW5: 66 | AX5: 66 | AY5: 66 | AZ5: 66 | BA5: 63 | BB5: 62 | BC5: 68 | BD5: 69 | BE5: 72 | BF5: 69 | BG5: 69 | BH5: 75 | BI5: 67 | BJ5: 65 | BK5: 66 | BL5: 63 | BM5: 75 | BN5: 71 | BO5: 68 | BP5: 68 | BQ5: 67 | BR5: 69 | BS5: 67 | BT5: 70 | BU5: 64 | BV5: 62 | BW5: 66 | BX5: 72 | BY5: 67 | BZ5: 63 | CA5: 72 | CB5: 70
A6: 67 | B6: 70 | C6: 65 | D6: 67 | E6: 70 | F6: 69 | G6: 65 | H6: 68 | I6: 68 | J6: 67 | K6: 65 | L6: 68 | M6: 67 | N6: 62 | O6: 74 | P6: 73 | Q6: 68 | R6: 71 | S6: 70 | T6: 66 | U6: 64 | V6: 75 | W6: 63 | X6: 67 | Y6: 71 | Z6: 71 | AA6: 66 | AB6: 71 | AC6: 64 | AD6: 65 | AE6: 69 | AF6: 66 | AG6: 72 | AH6: 69 | AI6: 66 | AJ6: 74 | AK6: 74 | AL6: 68 | AM6: 72 | AN6: 65 | AO6: 68 | AP6: 70 | AQ6: 70 | AR6: 73 | AS6: 67 | AT6: 66 | AU6: 65 | AV6: 71 | AW6: 69 | AX6: 69 | AY6: 66 | AZ6: 70 | BA6: 68 | BB6: 68 | BC6: 65 | BD6: 67 | BE6: 64 | BF6: 73 | BG6: 69 | BH6: 66 | BI6: 66 | BJ6: 74 | BK6: 73 | BL6: 69 | BM6: 62 | BN6: 64 | BO6: 67 | BP6: 62 | BQ6: 63 | BR6: 69 | BS6: 69 | BT6: 65 | BU6: 71 | BV6: 71 | BW6: 68 | BX6: 74 | BY6: 70 | BZ6: 69 | CA6: 66 | CB6: 63
A7: 68 | B7: 66 | C7: 66 | D7: 73 | E7: 65 | F7: 67 | G7: 65 | H7: 66 | I7: 67 | J7: 67 | K7: 69 | L7: 71 | M7: 71 | N7: 70 | O7: 66 | P7: 74 | Q7: 69 | R7: 71 | S7: 64 | T7: 70 | U7: 66 | V7: 73 | W7: 68 | X7: 65 | Y7: 67 | Z7: 73 | AA7: 67 | AB7: 68 | AC7: 68 | AD7: 65 | AE7: 68 | AF7: 67 | AG7: 70 | AH7: 69 | AI7: 66 | AJ7: 68 | AK7: 71 | AL7: 74 | AM7: 69 | AN7: 72 | AO7: 67 | AP7: 69 | AQ7: 68 | AR7: 68 | AS7: 69 | AT7: 67 | AU7: 64 | AV7: 71 | AW7: 68 | AX7: 65 | AY7: 66 | AZ7: 70 | BA7: 72 | BB7: 73 | BC7: 67 | BD7: 66 | BE7: 71 | BF7: 69 | BG7: 67 | BH7: 65 | BI7: 65 | BJ7: 66 | BK7: 68 | BL7: 69 | BM7: 66 | BN7: 61 | BO7: 71 | BP7: 67 | BQ7: 69 | BR7: 67 | BS7: 64 | BT7: 71 | BU7: 61 | BV7: 69 | BW7: 71 | BX7: 66 | BY7: 68 | BZ7: 74 | CA7: 69 | CB7: 67
A8: 69 | B8: 66 | C8: 65 | D8: 66 | E8: 68 | F8: 69 | G8: 70 | H8: 68 | I8: 64 | J8: 66 | K8: 68 | L8: 67 | M8: 68 | N8: 70 | O8: 67 | P8: 68 | Q8: 67 | R8: 68 | S8: 68 | T8: 66 | U8: 68 | V8: 72 | W8: 66 | X8: 61 | Y8: 66 | Z8: 74 | AA8: 64 | AB8: 66 | AC8: 69 | AD8: 66 | AE8: 66 | AF8: 62 | AG8: 67 | AH8: 63 | AI8: 70 | AJ8: 66 | AK8: 65 | AL8: 69 | AM8: 62 | AN8: 65 | AO8: 67 | AP8: 68 | AQ8: 71 | AR8: 66 | AS8: 69 | AT8: 69 | AU8: 73 | AV8: 66 | AW8: 68 | AX8: 63 | AY8: 70 | AZ8: 74 | BA8: 64 | BB8: 66 | BC8: 66 | BD8: 63 | BE8: 68 | BF8: 71 | BG8: 66 | BH8: 74 | BI8: 65 | BJ8: 69 | BK8: 69 | BL8: 67 | BM8: 68 | BN8: 67 | BO8: 66 | BP8: 69 | BQ8: 65 | BR8: 71 | BS8: 62 | BT8: 69 | BU8: 68 | BV8: 68 | BW8: 72 | BX8: 70 | BY8: 69 | BZ8: 69 | CA8: 65 | CB8: 65
A9: 62 | B9: 68 | C9: 66 | D9: 71 | E9: 69 | F9: 67 | G9: 67 | H9: 67 | I9: 67 | J9: 65 | K9: 66 | L9: 69 | M9: 68 | N9: 64 | O9: 62 | P9: 69 | Q9: 70 | R9: 67 | S9: 66 | T9: 67 | U9: 69 | V9: 68 | W9: 64 | X9: 67 | Y9: 74 | Z9: 67 | AA9: 66 | AB9: 67 | AC9: 67 | AD9: 66 | AE9: 65 | AF9: 68 | AG9: 68 | AH9: 74 | AI9: 66 | AJ9: 66 | AK9: 68 | AL9: 69 | AM9: 66 | AN9: 66 | AO9: 72 | AP9: 67 | AQ9: 73 | AR9: 68 | AS9: 66 | AT9: 65 | AU9: 72 | AV9: 66 | AW9: 72 | AX9: 68 | AY9: 73 | AZ9: 71 | BA9: 69 | BB9: 68 | BC9: 70 | BD9: 62 | BE9: 73 | BF9: 62 | BG9: 69 | BH9: 65 | BI9: 71 | BJ9: 67 | BK9: 68 | BL9: 66 | BM9: 64 | BN9: 68 | BO9: 66 | BP9: 67 | BQ9: 69 | BR9: 65 | BS9: 62 | BT9: 75 | BU9: 68 | BV9: 71 | BW9: 61 | BX9: 65 | BY9: 70 | BZ9: 65 | CA9: 74 | CB9: 70
A10: 68 | B10: 74 | C10: 75 | D10: 68 | E10: 68 | F10: 67 | G10: 71 | H10: 72 | I10: 67 | J10: 72 | K10: 68 | L10: 68 | M10: 66 | N10: 68 | O10: 75 | P10: 69 | Q10: 69 | R10: 65 | S10: 69 | T10: 66 | U10: 70 | V10: 66 | W10: 63 | X10: 68 | Y10: 67 | Z10: 69 | AA10: 68 | AB10: 72 | AC10: 67 | AD10: 65 | AE10: 67 | AF10: 67 | AG10: 67 | AH10: 68 | AI10: 72 | AJ10: 69 | AK10: 68 | AL10: 67 | AM10: 69 | AN10: 69 | AO10: 65 | AP10: 70 | AQ10: 70 | AR10: 70 | AS10: 66 | AT10: 64 | AU10: 66 | AV10: 67 | AW10: 67 | AX10: 66 | AY10: 68 | AZ10: 68 | BA10: 66 | BB10: 66 | BC10: 62 | BD10: 66 | BE10: 67 | BF10: 62 | BG10: 69 | BH10: 69 | BI10: 71 | BJ10: 62 | BK10: 75 | BL10: 66 | BM10: 68 | BN10: 68 | BO10: 67 | BP10: 69 | BQ10: 72 | BR10: 61 | BS10: 67 | BT10: 69 | BU10: 68 | BV10: 68 | BW10: 67 | BX10: 66 | BY10: 69 | BZ10: 71 | CA10: 66 | CB10: 68
A11: =sampx(pop, popsize,newSample) -> 68 | B11: 69 | C11: 68 | D11: 70 | E11: 73 | F11: 69 | G11: 73 | H11: 69 | I11: 73 | J11: 67 | K11: =sampx(pop, popsize,newSample) -> 71 | L11: 67 | M11: 68 | N11: 68 | O11: 69 | P11: 66 | Q11: 69 | R11: 67 | S11: 69 | T11: 71 | U11: =sampx(pop, popsize,newSample) -> 68 | V11: 68 | W11: 69 | X11: 68 | Y11: 67 | Z11: 66 | AA11: 72 | AB11: 72 | AC11: 71 | AD11: 62 | AE11: =sampx(pop, popsize,newSample) -> 62 | AF11: 69 | AG11: 71 | AH11: 66 | AI11: 69 | AJ11: 68 | AK11: 71 | AL11: 69 | AM11: 64 | AN11: 70 | AO11: =sampx(pop, popsize,newSample) -> 67 | AP11: 69 | AQ11: 67 | AR11: 62 | AS11: 71 | AT11: 66 | AU11: 69 | AV11: 66 | AW11: 69 | AX11: 68 | AY11: =sampx(pop, popsize,newSample) -> 67 | AZ11: 68 | BA11: 68 | BB11: 71 | BC11: 67 | BD11: 68 | BE11: 67 | BF11: 71 | BG11: 66 | BH11: 67 | BI11: =sampx(pop, popsize,newSample) -> 66 | BJ11: 67 | BK11: 69 | BL11: 65 | BM11: 69 | BN11: 70 | BO11: 67 | BP11: 66 | BQ11: 74 | BR11: 67 | BS11: =sampx(pop, popsize,newSample) -> 68 | BT11: 65 | BU11: 66 | BV11: 69 | BW11: 64 | BX11: 69 | BY11: 69 | BZ11: 69 | CA11: 66 | CB11: 66
A12: 68 | B12: 71 | C12: 72 | D12: 65 | E12: 65 | F12: 68 | G12: 70 | H12: 66 | I12: 67 | J12: 68 | K12: 71 | L12: 69 | M12: 67 | N12: 66 | O12: 75 | P12: 70 | Q12: 67 | R12: 64 | S12: 72 | T12: 67 | U12: 66 | V12: 64 | W12: 67 | X12: 68 | Y12: 69 | Z12: 69 | AA12: 70 | AB12: 66 | AC12: 72 | AD12: 68 | AE12: 71 | AF12: 72 | AG12: 66 | AH12: 68 | AI12: 66 | AJ12: 67 | AK12: 69 | AL12: 66 | AM12: 73 | AN12: 69 | AO12: 66 | AP12: 68 | AQ12: 64 | AR12: 67 | AS12: 73 | AT12: 72 | AU12: 67 | AV12: 67 | AW12: 68 | AX12: 68 | AY12: 70 | AZ12: 67 | BA12: 68 | BB12: 71 | BC12: 69 | BD12: 69 | BE12: 72 | BF12: 70 | BG12: 67 | BH12: 72 | BI12: 70 | BJ12: 71 | BK12: 66 | BL12: 65 | BM12: 66 | BN12: 66 | BO12: 65 | BP12: 70 | BQ12: 65 | BR12: 66 | BS12: 70 | BT12: 68 | BU12: 67 | BV12: 66 | BW12: 69 | BX12: 66 | BY12: 70 | BZ12: 71 | CA12: 68 | CB12: 68
A13: 69 | B13: 68 | C13: 71 | D13: 67 | E13: 72 | F13: 66 | G13: 62 | H13: 67 | I13: 68 | J13: 68 | K13: 71 | L13: 65 | M13: 67 | N13: 67 | O13: 63 | P13: 70 | Q13: 69 | R13: 67 | S13: 72 | T13: 69 | U13: 67 | V13: 67 | W13: 69 | X13: 71 | Y13: 66 | Z13: 70 | AA13: 69 | AB13: 68 | AC13: 69 | AD13: 71 | AE13: 69 | AF13: 67 | AG13: 69 | AH13: 69 | AI13: 68 | AJ13: 69 | AK13: 68 | AL13: 64 | AM13: 65 | AN13: 72 | AO13: 67 | AP13: 70 | AQ13: 62 | AR13: 69 | AS13: 74 | AT13: 64 | AU13: 68 | AV13: 72 | AW13: 64 | AX13: 62 | AY13: 66 | AZ13: 72 | BA13: 74 | BB13: 71 | BC13: 70 | BD13: 72 | BE13: 68 | BF13: 68 | BG13: 74 | BH13: 67 | BI13: 68 | BJ13: 64 | BK13: 71 | BL13: 67 | BM13: 68 | BN13: 69 | BO13: 69 | BP13: 68 | BQ13: 68 | BR13: 67 | BS13: 70 | BT13: 68 | BU13: 73 | BV13: 67 | BW13: 72 | BX13: 68 | BY13: 66 | BZ13: 73 | CA13: 66 | CB13: 66
A14: 67 | B14: 62 | C14: 70 | D14: 64 | E14: 67 | F14: 70 | G14: 65 | H14: 71 | I14: 70 | J14: 62 | K14: 65 | L14: 70 | M14: 65 | N14: 68 | O14: 67 | P14: 69 | Q14: 68 | R14: 70 | S14: 68 | T14: 69 | U14: 69 | V14: 69 | W14: 72 | X14: 69 | Y14: 65 | Z14: 74 | AA14: 72 | AB14: 69 | AC14: 68 | AD14: 67 | AE14: 73 | AF14: 64 | AG14: 67 | AH14: 65 | AI14: 67 | AJ14: 67 | AK14: 71 | AL14: 67 | AM14: 66 | AN14: 69 | AO14: 70 | AP14: 68 | AQ14: 68 | AR14: 75 | AS14: 64 | AT14: 70 | AU14: 67 | AV14: 66 | AW14: 64 | AX14: 74 | AY14: 62 | AZ14: 70 | BA14: 67 | BB14: 68 | BC14: 68 | BD14: 70 | BE14: 67 | BF14: 71 | BG14: 62 | BH14: 72 | BI14: 69 | BJ14: 69 | BK14: 65 | BL14: 69 | BM14: 67 | BN14: 67 | BO14: 73 | BP14: 72 | BQ14: 65 | BR14: 72 | BS14: 71 | BT14: 67 | BU14: 71 | BV14: 68 | BW14: 71 | BX14: 68 | BY14: 67 | BZ14: 68 | CA14: 68 | CB14: 66
A15: 64 | B15: 67 | C15: 68 | D15: 71 | E15: 67 | F15: 66 | G15: 70 | H15: 67 | I15: 67 | J15: 72 | K15: 73 | L15: 68 | M15: 71 | N15: 66 | O15: 69 | P15: 66 | Q15: 62 | R15: 71 | S15: 72 | T15: 68 | U15: 74 | V15: 68 | W15: 61 | X15: 69 | Y15: 66 | Z15: 62 | AA15: 65 | AB15: 69 | AC15: 66 | AD15: 70 | AE15: 69 | AF15: 73 | AG15: 71 | AH15: 62 | AI15: 61 | AJ15: 73 | AK15: 68 | AL15: 69 | AM15: 67 | AN15: 69 | AO15: 62 | AP15: 69 | AQ15: 69 | AR15: 72 | AS15: 66 | AT15: 69 | AU15: 70 | AV15: 70 | AW15: 68 | AX15: 66 | AY15: 68 | AZ15: 65 | BA15: 68 | BB15: 68 | BC15: 71 | BD15: 70 | BE15: 68 | BF15: 65 | BG15: 65 | BH15: 69 | BI15: 71 | BJ15: 68 | BK15: 70 | BL15: 68 | BM15: 72 | BN15: 72 | BO15: 65 | BP15: 74 | BQ15: 69 | BR15: 67 | BS15: 68 | BT15: 68 | BU15: 74 | BV15: 69 | BW15: 63 | BX15: 68 | BY15: 66 | BZ15: 66 | CA15: 69 | CB15: 67
A16: 74 | B16: 68 | C16: 66 | D16: 66 | E16: 74 | F16: 68 | G16: 65 | H16: 73 | I16: 65 | J16: 66 | K16: 70 | L16: 67 | M16: 65 | N16: 68 | O16: 69 | P16: 61 | Q16: 66 | R16: 69 | S16: 67 | T16: 70 | U16: 71 | V16: 68 | W16: 67 | X16: 67 | Y16: 67 | Z16: 67 | AA16: 70 | AB16: 73 | AC16: 66 | AD16: 67 | AE16: 67 | AF16: 68 | AG16: 63 | AH16: 68 | AI16: 65 | AJ16: 66 | AK16: 61 | AL16: 68 | AM16: 66 | AN16: 66 | AO16: 66 | AP16: 73 | AQ16: 68 | AR16: 69 | AS16: 63 | AT16: 74 | AU16: 68 | AV16: 75 | AW16: 68 | AX16: 67 | AY16: 69 | AZ16: 69 | BA16: 70 | BB16: 69 | BC16: 69 | BD16: 66 | BE16: 67 | BF16: 70 | BG16: 69 | BH16: 71 | BI16: 67 | BJ16: 63 | BK16: 65 | BL16: 68 | BM16: 68 | BN16: 68 | BO16: 67 | BP16: 69 | BQ16: 65 | BR16: 68 | BS16: 69 | BT16: 69 | BU16: 62 | BV16: 65 | BW16: 68 | BX16: 64 | BY16: 68 | BZ16: 72 | CA16: 67 | CB16: 75
A17: 70 | B17: 66 | C17: 67 | D17: 70 | E17: 67 | F17: 66 | G17: 68 | H17: 70 | I17: 67 | J17: 68 | K17: 71 | L17: 69 | M17: 73 | N17: 66 | O17: 69 | P17: 70 | Q17: 74 | R17: 68 | S17: 71 | T17: 68 | U17: 72 | V17: 66 | W17: 70 | X17: 68 | Y17: 72 | Z17: 71 | AA17: 65 | AB17: 70 | AC17: 68 | AD17: 67 | AE17: 67 | AF17: 68 | AG17: 69 | AH17: 66 | AI17: 66 | AJ17: 72 | AK17: 72 | AL17: 69 | AM17: 67 | AN17: 67 | AO17: 68 | AP17: 67 | AQ17: 69 | AR17: 67 | AS17: 65 | AT17: 67 | AU17: 67 | AV17: 68 | AW17: 69 | AX17: 68 | AY17: 66 | AZ17: 70 | BA17: 72 | BB17: 72 | BC17: 72 | BD17: 61 | BE17: 67 | BF17: 65 | BG17: 69 | BH17: 69 | BI17: 71 | BJ17: 66 | BK17: 67 | BL17: 67 | BM17: 69 | BN17: 73 | BO17: 71 | BP17: 64 | BQ17: 68 | BR17: 67 | BS17: 67 | BT17: 73 | BU17: 65 | BV17: 73 | BW17: 63 | BX17: 69 | BY17: 67 | BZ17: 70 | CA17: 70 | CB17: 71
A18: 69 | B18: 72 | C18: 73 | D18: 71 | E18: 66 | F18: 68 | G18: 73 | H18: 69 | I18: 69 | J18: 64 | K18: 69 | L18: 74 | M18: 67 | N18: 67 | O18: 72 | P18: 75 | Q18: 73 | R18: 65 | S18: 62 | T18: 66 | U18: 66 | V18: 67 | W18: 65 | X18: 66 | Y18: 68 | Z18: 66 | AA18: 68 | AB18: 70 | AC18: 72 | AD18: 73 | AE18: 69 | AF18: 68 | AG18: 72 | AH18: 67 | AI18: 70 | AJ18: 66 | AK18: 69 | AL18: 66 | AM18: 68 | AN18: 70 | AO18: 61 | AP18: 66 | AQ18: 67 | AR18: 73 | AS18: 67 | AT18: 75 | AU18: 65 | AV18: 67 | AW18: 66 | AX18: 70 | AY18: 67 | AZ18: 73 | BA18: 69 | BB18: 70 | BC18: 66 | BD18: 67 | BE18: 67 | BF18: 71 | BG18: 70 | BH18: 64 | BI18: 67 | BJ18: 73 | BK18: 65 | BL18: 69 | BM18: 66 | BN18: 68 | BO18: 65 | BP18: 67 | BQ18: 72 | BR18: 73 | BS18: 67 | BT18: 72 | BU18: 66 | BV18: 69 | BW18: 73 | BX18: 68 | BY18: 65 | BZ18: 71 | CA18: 64 | CB18: 68
A19: 68 | B19: 63 | C19: 67 | D19: 64 | E19: 68 | F19: 67 | G19: 61 | H19: 66 | I19: 67 | J19: 65 | K19: 68 | L19: 64 | M19: 67 | N19: 66 | O19: 63 | P19: 66 | Q19: 67 | R19: 68 | S19: 67 | T19: 69 | U19: 68 | V19: 67 | W19: 69 | X19: 68 | Y19: 68 | Z19: 65 | AA19: 66 | AB19: 67 | AC19: 66 | AD19: 64 | AE19: 67 | AF19: 66 | AG19: 65 | AH19: 75 | AI19: 68 | AJ19: 67 | AK19: 62 | AL19: 69 | AM19: 69 | AN19: 66 | AO19: 69 | AP19: 68 | AQ19: 69 | AR19: 61 | AS19: 69 | AT19: 65 | AU19: 66 | AV19: 69 | AW19: 67 | AX19: 66 | AY19: 66 | AZ19: 67 | BA19: 64 | BB19: 69 | BC19: 67 | BD19: 63 | BE19: 68 | BF19: 70 | BG19: 69 | BH19: 64 | BI19: 67 | BJ19: 67 | BK19: 68 | BL19: 70 | BM19: 72 | BN19: 61 | BO19: 71 | BP19: 66 | BQ19: 67 | BR19: 66 | BS19: 67 | BT19: 68 | BU19: 68 | BV19: 71 | BW19: 69 | BX19: 62 | BY19: 74 | BZ19: 69 | CA19: 72 | CB19: 68
A20: 67 | B20: 62 | C20: 71 | D20: 62 | E20: 68 | F20: 65 | G20: 71 | H20: 66 | I20: 70 | J20: 71 | K20: 66 | L20: 64 | M20: 64 | N20: 75 | O20: 69 | P20: 69 | Q20: 72 | R20: 71 | S20: 67 | T20: 73 | U20: 68 | V20: 67 | W20: 69 | X20: 66 | Y20: 66 | Z20: 70 | AA20: 67 | AB20: 67 | AC20: 68 | AD20: 71 | AE20: 68 | AF20: 68 | AG20: 68 | AH20: 70 | AI20: 69 | AJ20: 71 | AK20: 72 | AL20: 74 | AM20: 66 | AN20: 69 | AO20: 72 | AP20: 62 | AQ20: 69 | AR20: 70 | AS20: 69 | AT20: 72 | AU20: 67 | AV20: 68 | AW20: 63 | AX20: 71 | AY20: 66 | AZ20: 64 | BA20: 68 | BB20: 67 | BC20: 68 | BD20: 72 | BE20: 71 | BF20: 71 | BG20: 75 | BH20: 67 | BI20: 68 | BJ20: 62 | BK20: 73 | BL20: 71 | BM20: 67 | BN20: 68 | BO20: 68 | BP20: 72 | BQ20: 68 | BR20: 68 | BS20: 69 | BT20: 65 | BU20: 67 | BV20: 64 | BW20: 69 | BX20: 66 | BY20: 69 | BZ20: 66 | CA20: 75 | CB20: 61
A21: =sampx(pop, popsize,newSample) -> 69 | B21: 65 | C21: 68 | D21: 67 | E21: 68 | F21: 67 | G21: 70 | H21: 72 | I21: 66 | J21: 66 | K21: =sampx(pop, popsize,newSample) -> 70 | L21: 67 | M21: 70 | N21: 63 | O21: 70 | P21: 64 | Q21: 69 | R21: 66 | S21: 67 | T21: 68 | U21: =sampx(pop, popsize,newSample) -> 64 | V21: 69 | W21: 68 | X21: 71 | Y21: 71 | Z21: 68 | AA21: 69 | AB21: 68 | AC21: 64 | AD21: 68 | AE21: =sampx(pop, popsize,newSample) -> 72 | AF21: 66 | AG21: 62 | AH21: 73 | AI21: 74 | AJ21: 74 | AK21: 66 | AL21: 66 | AM21: 71 | AN21: 70 | AO21: =sampx(pop, popsize,newSample) -> 70 | AP21: 69 | AQ21: 69 | AR21: 71 | AS21: 68 | AT21: 71 | AU21: 72 | AV21: 66 | AW21: 66 | AX21: 69 | AY21: =sampx(pop, popsize,newSample) -> 69 | AZ21: 68 | BA21: 69 | BB21: 71 | BC21: 66 | BD21: 68 | BE21: 64 | BF21: 62 | BG21: 68 | BH21: 71 | BI21: =sampx(pop, popsize,newSample) -> 63 | BJ21: 68 | BK21: 68 | BL21: 66 | BM21: 67 | BN21: 61 | BO21: 73 | BP21: 67 | BQ21: 67 | BR21: 68 | BS21: =sampx(pop, popsize,newSample) -> 65 | BT21: 69 | BU21: 71 | BV21: 66 | BW21: 71 | BX21: 72 | BY21: 69 | BZ21: 72 | CA21: 69 | CB21: 70
A22: 69 | B22: 67 | C22: 68 | D22: 64 | E22: 69 | F22: 70 | G22: 68 | H22: 64 | I22: 65 | J22: 69 | K22: 69 | L22: 68 | M22: 68 | N22: 73 | O22: 71 | P22: 64 | Q22: 68 | R22: 73 | S22: 66 | T22: 67 | U22: 75 | V22: 66 | W22: 71 | X22: 64 | Y22: 66 | Z22: 66 | AA22: 70 | AB22: 69 | AC22: 70 | AD22: 65 | AE22: 68 | AF22: 68 | AG22: 68 | AH22: 65 | AI22: 68 | AJ22: 71 | AK22: 73 | AL22: 68 | AM22: 68 | AN22: 68 | AO22: 67 | AP22: 70 | AQ22: 66 | AR22: 66 | AS22: 66 | AT22: 70 | AU22: 64 | AV22: 68 | AW22: 70 | AX22: 66 | AY22: 64 | AZ22: 72 | BA22: 65 | BB22: 67 | BC22: 66 | BD22: 66 | BE22: 68 | BF22: 68 | BG22: 69 | BH22: 73 | BI22: 74 | BJ22: 66 | BK22: 68 | BL22: 72 | BM22: 69 | BN22: 67 | BO22: 65 | BP22: 66 | BQ22: 67 | BR22: 66 | BS22: 69 | BT22: 62 | BU22: 70 | BV22: 72 | BW22: 69 | BX22: 68 | BY22: 68 | BZ22: 70 | CA22: 69 | CB22: 64
A23: 67 | B23: 68 | C23: 69 | D23: 65 | E23: 67 | F23: 67 | G23: 69 | H23: 68 | I23: 66 | J23: 69 | K23: 68 | L23: 67 | M23: 64 | N23: 66 | O23: 67 | P23: 64 | Q23: 69 | R23: 67 | S23: 67 | T23: 70 | U23: 72 | V23: 73 | W23: 66 | X23: 67 | Y23: 69 | Z23: 67 | AA23: 69 | AB23: 67 | AC23: 70 | AD23: 66 | AE23: 71 | AF23: 73 | AG23: 67 | AH23: 66 | AI23: 68 | AJ23: 73 | AK23: 67 | AL23: 73 | AM23: 70 | AN23: 73 | AO23: 68 | AP23: 65 | AQ23: 73 | AR23: 74 | AS23: 66 | AT23: 70 | AU23: 68 | AV23: 68 | AW23: 69 | AX23: 66 | AY23: 62 | AZ23: 72 | BA23: 73 | BB23: 73 | BC23: 67 | BD23: 68 | BE23: 75 | BF23: 69 | BG23: 68 | BH23: 74 | BI23: 65 | BJ23: 64 | BK23: 66 | BL23: 72 | BM23: 69 | BN23: 67 | BO23: 66 | BP23: 70 | BQ23: 71 | BR23: 71 | BS23: 68 | BT23: 72 | BU23: 70 | BV23: 65 | BW23: 67 | BX23: 67 | BY23: 66 | BZ23: 70 | CA23: 65 | CB23: 66
A24: 72 | B24: 66 | C24: 73 | D24: 71 | E24: 67 | F24: 69 | G24: 64 | H24: 69 | I24: 67 | J24: 66 | K24: 72 | L24: 71 | M24: 75 | N24: 67 | O24: 70 | P24: 68 | Q24: 67 | R24: 65 | S24: 72 | T24: 66 | U24: 66 | V24: 67 | W24: 67 | X24: 69 | Y24: 67 | Z24: 67 | AA24: 67 | AB24: 72 | AC24: 67 | AD24: 61 | AE24: 70 | AF24: 65 | AG24: 68 | AH24: 66 | AI24: 69 | AJ24: 68 | AK24: 68 | AL24: 62 | AM24: 70 | AN24: 61 | AO24: 69 | AP24: 69 | AQ24: 66 | AR24: 68 | AS24: 66 | AT24: 75 | AU24: 68 | AV24: 66 | AW24: 66 | AX24: 66 | AY24: 63 | AZ24: 69 | BA24: 71 | BB24: 68 | BC24: 67 | BD24: 67 | BE24: 70 | BF24: 63 | BG24: 67 | BH24: 67 | BI24: 63 | BJ24: 72 | BK24: 73 | BL24: 63 | BM24: 72 | BN24: 73 | BO24: 70 | BP24: 68 | BQ24: 65 | BR24: 62 | BS24: 74 | BT24: 67 | BU24: 65 | BV24: 66 | BW24: 66 | BX24: 69 | BY24: 69 | BZ24: 68 | CA24: 61 | CB24: 69
A25: 64 | B25: 68 | C25: 69 | D25: 66 | E25: 71 | F25: 72 | G25: 66 | H25: 67 | I25: 67 | J25: 72 | K25: 66 | L25: 75 | M25: 67 | N25: 71 | O25: 68 | P25: 70 | Q25: 67 | R25: 66 | S25: 66 | T25: 65 | U25: 68 | V25: 67 | W25: 68 | X25: 66 | Y25: 68 | Z25: 67 | AA25: 65 | AB25: 75 | AC25: 70 | AD25: 70 | AE25: 69 | AF25: 62 | AG25: 67 | AH25: 66 | AI25: 65 | AJ25: 72 | AK25: 65 | AL25: 70 | AM25: 62 | AN25: 69 | AO25: 65 | AP25: 70 | AQ25: 72 | AR25: 67 | AS25: 67 | AT25: 67 | AU25: 65 | AV25: 72 | AW25: 69 | AX25: 67 | AY25: 67 | AZ25: 67 | BA25: 66 | BB25: 69 | BC25: 66 | BD25: 72 | BE25: 67 | BF25: 69 | BG25: 68 | BH25: 67 | BI25: 67 | BJ25: 65 | BK25: 66 | BL25: 65 | BM25: 70 | BN25: 67 | BO25: 72 | BP25: 72 | BQ25: 69 | BR25: 64 | BS25: 65 | BT25: 66 | BU25: 68 | BV25: 65 | BW25: 69 | BX25: 70 | BY25: 69 | BZ25: 71 | CA25: 69 | CB25: 68
A26: 68 | B26: 66 | C26: 68 | D26: 68 | E26: 67 | F26: 69 | G26: 70 | H26: 69 | I26: 66 | J26: 68 | K26: 66 | L26: 66 | M26: 71 | N26: 65 | O26: 75 | P26: 66 | Q26: 70 | R26: 67 | S26: 68 | T26: 73 | U26: 73 | V26: 72 | W26: 66 | X26: 65 | Y26: 70 | Z26: 61 | AA26: 61 | AB26: 72 | AC26: 69 | AD26: 73 | AE26: 70 | AF26: 73 | AG26: 68 | AH26: 65 | AI26: 62 | AJ26: 68 | AK26: 65 | AL26: 65 | AM26: 67 | AN26: 66 | AO26: 69 | AP26: 72 | AQ26: 69 | AR26: 67 | AS26: 64 | AT26: 66 | AU26: 71 | AV26: 71 | AW26: 70 | AX26: 62 | AY26: 68 | AZ26: 67 | BA26: 67 | BB26: 68 | BC26: 68 | BD26: 68 | BE26: 67 | BF26: 71 | BG26: 69 | BH26: 74 | BI26: 64 | BJ26: 71 | BK26: 71 | BL26: 68 | BM26: 67 | BN26: 65 | BO26: 68 | BP26: 66 | BQ26: 69 | BR26: 72 | BS26: 66 | BT26: 74 | BU26: 69 | BV26: 66 | BW26: 64 | BX26: 70 | BY26: 66 | BZ26: 70 | CA26: 70 | CB26: 71
A27: 68 | B27: 74 | C27: 66 | D27: 66 | E27: 65 | F27: 64 | G27: 73 | H27: 68 | I27: 64 | J27: 68 | K27: 69 | L27: 69 | M27: 67 | N27: 75 | O27: 71 | P27: 68 | Q27: 64 | R27: 69 | S27: 67 | T27: 67 | U27: 71 | V27: 66 | W27: 70 | X27: 68 | Y27: 62 | Z27: 69 | AA27: 69 | AB27: 62 | AC27: 69 | AD27: 69 | AE27: 65 | AF27: 67 | AG27: 66 | AH27: 69 | AI27: 62 | AJ27: 72 | AK27: 66 | AL27: 65 | AM27: 69 | AN27: 62 | AO27: 68 | AP27: 64 | AQ27: 65 | AR27: 66 | AS27: 64 | AT27: 70 | AU27: 64 | AV27: 67 | AW27: 70 | AX27: 66 | AY27: 73 | AZ27: 69 | BA27: 66 | BB27: 66 | BC27: 69 | BD27: 69 | BE27: 65 | BF27: 67 | BG27: 68 | BH27: 65 | BI27: 72 | BJ27: 65 | BK27: 71 | BL27: 68 | BM27: 73 | BN27: 62 | BO27: 74 | BP27: 67 | BQ27: 71 | BR27: 68 | BS27: 70 | BT27: 69 | BU27: 64 | BV27: 68 | BW27: 71 | BX27: 71 | BY27: 67 | BZ27: 62 | CA27: 65 | CB27: 67
A28: 66 | B28: 74 | C28: 70 | D28: 62 | E28: 68 | F28: 71 | G28: 66 | H28: 71 | I28: 66 | J28: 66 | K28: 72 | L28: 71 | M28: 67 | N28: 73 | O28: 66 | P28: 66 | Q28: 68 | R28: 66 | S28: 70 | T28: 65 | U28: 66 | V28: 69 | W28: 68 | X28: 68 | Y28: 67 | Z28: 62 | AA28: 69 | AB28: 68 | AC28: 71 | AD28: 73 | AE28: 63 | AF28: 71 | AG28: 70 | AH28: 64 | AI28: 61 | AJ28: 67 | AK28: 67 | AL28: 71 | AM28: 70 | AN28: 73 | AO28: 69 | AP28: 68 | AQ28: 68 | AR28: 65 | AS28: 69 | AT28: 66 | AU28: 69 | AV28: 66 | AW28: 74 | AX28: 67 | AY28: 68 | AZ28: 63 | BA28: 65 | BB28: 65 | BC28: 72 | BD28: 67 | BE28: 65 | BF28: 65 | BG28: 63 | BH28: 73 | BI28: 71 | BJ28: 72 | BK28: 66 | BL28: 67 | BM28: 70 | BN28: 72 | BO28: 69 | BP28: 65 | BQ28: 72 | BR28: 67 | BS28: 75 | BT28: 67 | BU28: 67 | BV28: 67 | BW28: 67 | BX28: 66 | BY28: 68 | BZ28: 67 | CA28: 62 | CB28: 68
A29: 68 | B29: 67 | C29: 67 | D29: 66 | E29: 67 | F29: 71 | G29: 72 | H29: 65 | I29: 66 | J29: 68 | K29: 65 | L29: 68 | M29: 67 | N29: 65 | O29: 67 | P29: 72 | Q29: 71 | R29: 70 | S29: 70 | T29: 66 | U29: 66 | V29: 72 | W29: 68 | X29: 66 | Y29: 69 | Z29: 73 | AA29: 68 | AB29: 72 | AC29: 66 | AD29: 68 | AE29: 67 | AF29: 71 | AG29: 73 | AH29: 65 | AI29: 72 | AJ29: 67 | AK29: 70 | AL29: 65 | AM29: 68 | AN29: 67 | AO29: 66 | AP29: 69 | AQ29: 68 | AR29: 69 | AS29: 72 | AT29: 68 | AU29: 63 | AV29: 69 | AW29: 68 | AX29: 65 | AY29: 66 | AZ29: 67 | BA29: 73 | BB29: 67 | BC29: 70 | BD29: 70 | BE29: 65 | BF29: 67 | BG29: 69 | BH29: 69 | BI29: 69 | BJ29: 69 | BK29: 65 | BL29: 73 | BM29: 72 | BN29: 67 | BO29: 69 | BP29: 63 | BQ29: 66 | BR29: 71 | BS29: 65 | BT29: 73 | BU29: 72 | BV29: 62 | BW29: 68 | BX29: 68 | BY29: 63 | BZ29: 73 | CA29: 75 | CB29: 68
A30: 64 | B30: 70 | C30: 69 | D30: 66 | E30: 69 | F30: 70 | G30: 69 | H30: 68 | I30: 66 | J30: 68 | K30: 66 | L30: 68 | M30: 62 | N30: 69 | O30: 68 | P30: 73 | Q30: 73 | R30: 67 | S30: 67 | T30: 71 | U30: 73 | V30: 69 | W30: 71 | X30: 71 | Y30: 66 | Z30: 66 | AA30: 68 | AB30: 62 | AC30: 74 | AD30: 67 | AE30: 69 | AF30: 72 | AG30: 67 | AH30: 69 | AI30: 62 | AJ30: 71 | AK30: 72 | AL30: 66 | AM30: 67 | AN30: 64 | AO30: 72 | AP30: 67 | AQ30: 71 | AR30: 65 | AS30: 74 | AT30: 68 | AU30: 69 | AV30: 67 | AW30: 68 | AX30: 65 | AY30: 73 | AZ30: 74 | BA30: 65 | BB30: 68 | BC30: 70 | BD30: 66 | BE30: 68 | BF30: 66 | BG30: 70 | BH30: 69 | BI30: 66 | BJ30: 72 | BK30: 67 | BL30: 68 | BM30: 66 | BN30: 68 | BO30: 72 | BP30: 66 | BQ30: 68 | BR30: 66 | BS30: 68 | BT30: 66 | BU30: 71 | BV30: 68 | BW30: 69 | BX30: 68 | BY30: 68 | BZ30: 66 | CA30: 71 | CB30: 69
A31: =sampx(pop, popsize,newSample) -> 67 | B31: 64 | C31: 66 | D31: 68 | E31: 64 | F31: 68 | G31: 72 | H31: 64 | I31: 66 | J31: 69 | K31: =sampx(pop, popsize,newSample) -> 68 | L31: 66 | M31: 66 | N31: 69 | O31: 70 | P31: 68 | Q31: 64 | R31: 70 | S31: 67 | T31: 66 | U31: =sampx(pop, popsize,newSample) -> 67 | V31: 68 | W31: 64 | X31: 66 | Y31: 67 | Z31: 65 | AA31: 67 | AB31: 68 | AC31: 75 | AD31: 70 | AE31: =sampx(pop, popsize,newSample) -> 63 | AF31: 70 | AG31: 73 | AH31: 66 | AI31: 68 | AJ31: 68 | AK31: 69 | AL31: 67 | AM31: 67 | AN31: 69 | AO31: =sampx(pop, popsize,newSample) -> 75 | AP31: 68 | AQ31: 65 | AR31: 66 | AS31: 72 | AT31: 67 | AU31: 69 | AV31: 67 | AW31: 68 | AX31: 66 | AY31: =sampx(pop, popsize,newSample) -> 66 | AZ31: 69 | BA31: 73 | BB31: 72 | BC31: 65 | BD31: 68 | BE31: 69 | BF31: 62 | BG31: 67 | BH31: 68 | BI31: =sampx(pop, popsize,newSample) -> 70 | BJ31: 64 | BK31: 69 | BL31: 69 | BM31: 68 | BN31: 74 | BO31: 64 | BP31: 66 | BQ31: 61 | BR31: 67 | BS31: =sampx(pop, popsize,newSample) -> 68 | BT31: 71 | BU31: 65 | BV31: 71 | BW31: 74 | BX31: 66 | BY31: 68 | BZ31: 67 | CA31: 65 | CB31: 73
A32: 69 | B32: 68 | C32: 64 | D32: 69 | E32: 66 | F32: 69 | G32: 68 | H32: 67 | I32: 68 | J32: 65 | K32: 69 | L32: 68 | M32: 69 | N32: 67 | O32: 69 | P32: 66 | Q32: 68 | R32: 71 | S32: 69 | T32: 69 | U32: 66 | V32: 69 | W32: 73 | X32: 69 | Y32: 65 | Z32: 73 | AA32: 67 | AB32: 66 | AC32: 68 | AD32: 66 | AE32: 62 | AF32: 70 | AG32: 74 | AH32: 69 | AI32: 68 | AJ32: 73 | AK32: 67 | AL32: 66 | AM32: 66 | AN32: 71 | AO32: 64 | AP32: 71 | AQ32: 73 | AR32: 63 | AS32: 68 | AT32: 69 | AU32: 67 | AV32: 68 | AW32: 73 | AX32: 64 | AY32: 66 | AZ32: 65 | BA32: 67 | BB32: 66 | BC32: 66 | BD32: 73 | BE32: 64 | BF32: 72 | BG32: 65 | BH32: 68 | BI32: 69 | BJ32: 67 | BK32: 66 | BL32: 65 | BM32: 66 | BN32: 67 | BO32: 66 | BP32: 69 | BQ32: 74 | BR32: 66 | BS32: 68 | BT32: 70 | BU32: 66 | BV32: 66 | BW32: 69 | BX32: 67 | BY32: 67 | BZ32: 65 | CA32: 68 | CB32: 71
A33: 64 | B33: 66 | C33: 67 | D33: 68 | E33: 75 | F33: 67 | G33: 73 | H33: 68 | I33: 68 | J33: 69 | K33: 67 | L33: 67 | M33: 68 | N33: 67 | O33: 71 | P33: 66 | Q33: 68 | R33: 71 | S33: 65 | T33: 67 | U33: 74 | V33: 74 | W33: 68 | X33: 65 | Y33: 64 | Z33: 67 | AA33: 67 | AB33: 70 | AC33: 66 | AD33: 64 | AE33: 71 | AF33: 66 | AG33: 68 | AH33: 65 | AI33: 69 | AJ33: 62 | AK33: 70 | AL33: 65 | AM33: 65 | AN33: 69 | AO33: 66 | AP33: 68 | AQ33: 68 | AR33: 66 | AS33: 67 | AT33: 71 | AU33: 68 | AV33: 68 | AW33: 68 | AX33: 65 | AY33: 66 | AZ33: 65 | BA33: 67 | BB33: 62 | BC33: 62 | BD33: 71 | BE33: 67 | BF33: 65 | BG33: 69 | BH33: 66 | BI33: 67 | BJ33: 69 | BK33: 69 | BL33: 66 | BM33: 68 | BN33: 68 | BO33: 67 | BP33: 71 | BQ33: 74 | BR33: 69 | BS33: 71 | BT33: 69 | BU33: 73 | BV33: 72 | BW33: 70 | BX33: 72 | BY33: 68 | BZ33: 66 | CA33: 72 | CB33: 70
A34: 66 | B34: 68 | C34: 65 | D34: 65 | E34: 73 | F34: 68 | G34: 69 | H34: 74 | I34: 67 | J34: 67 | K34: 69 | L34: 71 | M34: 68 | N34: 65 | O34: 68 | P34: 68 | Q34: 70 | R34: 66 | S34: 66 | T34: 68 | U34: 71 | V34: 68 | W34: 65 | X34: 72 | Y34: 67 | Z34: 63 | AA34: 65 | AB34: 68 | AC34: 69 | AD34: 68 | AE34: 67 | AF34: 72 | AG34: 68 | AH34: 66 | AI34: 66 | AJ34: 65 | AK34: 73 | AL34: 65 | AM34: 73 | AN34: 68 | AO34: 68 | AP34: 68 | AQ34: 63 | AR34: 71 | AS34: 67 | AT34: 65 | AU34: 66 | AV34: 65 | AW34: 65 | AX34: 70 | AY34: 65 | AZ34: 73 | BA34: 72 | BB34: 69 | BC34: 69 | BD34: 70 | BE34: 68 | BF34: 75 | BG34: 69 | BH34: 62 | BI34: 68 | BJ34: 71 | BK34: 70 | BL34: 70 | BM34: 68 | BN34: 65 | BO34: 66 | BP34: 67 | BQ34: 70 | BR34: 75 | BS34: 66 | BT34: 68 | BU34: 70 | BV34: 68 | BW34: 61 | BX34: 67 | BY34: 72 | BZ34: 67 | CA34: 67 | CB34: 70
A35: 67 | B35: 67 | C35: 62 | D35: 65 | E35: 68 | F35: 67 | G35: 69 | H35: 66 | I35: 66 | J35: 74 | K35: 70 | L35: 68 | M35: 69 | N35: 67 | O35: 66 | P35: 68 | Q35: 70 | R35: 66 | S35: 69 | T35: 70 | U35: 67 | V35: 66 | W35: 68 | X35: 62 | Y35: 68 | Z35: 69 | AA35: 71 | AB35: 68 | AC35: 72 | AD35: 71 | AE35: 70 | AF35: 67 | AG35: 66 | AH35: 70 | AI35: 69 | AJ35: 67 | AK35: 66 | AL35: 69 | AM35: 68 | AN35: 66 | AO35: 72 | AP35: 69 | AQ35: 73 | AR35: 66 | AS35: 73 | AT35: 67 | AU35: 68 | AV35: 70 | AW35: 72 | AX35: 73 | AY35: 70 | AZ35: 67 | BA35: 65 | BB35: 68 | BC35: 68 | BD35: 64 | BE35: 74 | BF35: 68 | BG35: 68 | BH35: 68 | BI35: 65 | BJ35: 71 | BK35: 69 | BL35: 67 | BM35: 64 | BN35: 71 | BO35: 71 | BP35: 70 | BQ35: 70 | BR35: 67 | BS35: 66 | BT35: 70 | BU35: 66 | BV35: 68 | BW35: 69 | BX35: 66 | BY35: 73 | BZ35: 69 | CA35: 71 | CB35: 69
A36: 68 | B36: 67 | C36: 70 | D36: 65 | E36: 70 | F36: 69 | G36: 67 | H36: 67 | I36: 67 | J36: 71 | K36: 66 | L36: 68 | M36: 69 | N36: 66 | O36: 65 | P36: 71 | Q36: 66 | R36: 65 | S36: 71 | T36: 72 | U36: 67 | V36: 71 | W36: 67 | X36: 69 | Y36: 73 | Z36: 71 | AA36: 67 | AB36: 68 | AC36: 72 | AD36: 67 | AE36: 69 | AF36: 62 | AG36: 68 | AH36: 68 | AI36: 61 | AJ36: 67 | AK36: 62 | AL36: 69 | AM36: 67 | AN36: 64 | AO36: 67 | AP36: 70 | AQ36: 68 | AR36: 72 | AS36: 68 | AT36: 66 | AU36: 69 | AV36: 62 | AW36: 68 | AX36: 61 | AY36: 71 | AZ36: 69 | BA36: 68 | BB36: 68 | BC36: 61 | BD36: 67 | BE36: 71 | BF36: 71 | BG36: 64 | BH36: 67 | BI36: 67 | BJ36: 70 | BK36: 69 | BL36: 67 | BM36: 67 | BN36: 66 | BO36: 67 | BP36: 68 | BQ36: 65 | BR36: 69 | BS36: 65 | BT36: 63 | BU36: 70 | BV36: 65 | BW36: 70 | BX36: 71 | BY36: 69 | BZ36: 73 | CA36: 69 | CB36: 67
A37: 66 | B37: 66 | C37: 73 | D37: 69 | E37: 69 | F37: 70 | G37: 66 | H37: 68 | I37: 67 | J37: 64 | K37: 67 | L37: 69 | M37: 67 | N37: 69 | O37: 69 | P37: 62 | Q37: 72 | R37: 67 | S37: 69 | T37: 67 | U37: 66 | V37: 69 | W37: 72 | X37: 66 | Y37: 62 | Z37: 62 | AA37: 71 | AB37: 69 | AC37: 65 | AD37: 69 | AE37: 67 | AF37: 73 | AG37: 67 | AH37: 65 | AI37: 70 | AJ37: 68 | AK37: 66 | AL37: 67 | AM37: 71 | AN37: 70 | AO37: 67 | AP37: 61 | AQ37: 65 | AR37: 67 | AS37: 65 | AT37: 69 | AU37: 67 | AV37: 74 | AW37: 65 | AX37: 68 | AY37: 68 | AZ37: 62 | BA37: 69 | BB37: 71 | BC37: 67 | BD37: 68 | BE37: 69 | BF37: 69 | BG37: 66 | BH37: 70 | BI37: 66 | BJ37: 61 | BK37: 70 | BL37: 69 | BM37: 68 | BN37: 70 | BO37: 69 | BP37: 66 | BQ37: 68 | BR37: 66 | BS37: 68 | BT37: 70 | BU37: 70 | BV37: 71 | BW37: 64 | BX37: 71 | BY37: 71 | BZ37: 68 | CA37: 71 | CB37: 67
A38: 65 | B38: 62 | C38: 66 | D38: 67 | E38: 69 | F38: 71 | G38: 66 | H38: 68 | I38: 69 | J38: 65 | K38: 69 | L38: 70 | M38: 67 | N38: 66 | O38: 65 | P38: 69 | Q38: 66 | R38: 67 | S38: 69 | T38: 71 | U38: 66 | V38: 70 | W38: 68 | X38: 72 | Y38: 68 | Z38: 68 | AA38: 69 | AB38: 68 | AC38: 67 | AD38: 65 | AE38: 70 | AF38: 74 | AG38: 73 | AH38: 66 | AI38: 71 | AJ38: 69 | AK38: 70 | AL38: 66 | AM38: 63 | AN38: 68 | AO38: 68 | AP38: 69 | AQ38: 70 | AR38: 66 | AS38: 68 | AT38: 69 | AU38: 69 | AV38: 70 | AW38: 71 | AX38: 72 | AY38: 67 | AZ38: 75 | BA38: 68 | BB38: 62 | BC38: 65 | BD38: 71 | BE38: 71 | BF38: 67 | BG38: 66 | BH38: 66 | BI38: 69 | BJ38: 68 | BK38: 65 | BL38: 69 | BM38: 66 | BN38: 73 | BO38: 68 | BP38: 70 | BQ38: 70 | BR38: 67 | BS38: 69 | BT38: 65 | BU38: 70 | BV38: 66 | BW38: 66 | BX38: 68 | BY38: 69 | BZ38: 62 | CA38: 72 | CB38: 68
A39: 69 | B39: 68 | C39: 67 | D39: 68 | E39: 71 | F39: 63 | G39: 67 | H39: 71 | I39: 68 | J39: 62 | K39: 69 | L39: 67 | M39: 65 | N39: 67 | O39: 68 | P39: 69 | Q39: 65 | R39: 70 | S39: 68 | T39: 72 | U39: 69 | V39: 70 | W39: 73 | X39: 65 | Y39: 62 | Z39: 68 | AA39: 66 | AB39: 67 | AC39: 73 | AD39: 66 | AE39: 69 | AF39: 69 | AG39: 70 | AH39: 68 | AI39: 68 | AJ39: 64 | AK39: 68 | AL39: 65 | AM39: 66 | AN39: 64 | AO39: 70 | AP39: 62 | AQ39: 67 | AR39: 75 | AS39: 74 | AT39: 69 | AU39: 68 | AV39: 71 | AW39: 66 | AX39: 69 | AY39: 66 | AZ39: 72 | BA39: 72 | BB39: 66 | BC39: 65 | BD39: 65 | BE39: 62 | BF39: 68 | BG39: 66 | BH39: 66 | BI39: 69 | BJ39: 66 | BK39: 66 | BL39: 64 | BM39: 65 | BN39: 65 | BO39: 68 | BP39: 67 | BQ39: 66 | BR39: 68 | BS39: 75 | BT39: 69 | BU39: 67 | BV39: 71 | BW39: 65 | BX39: 64 | BY39: 71 | BZ39: 71 | CA39: 69 | CB39: 71
A40: 71 | B40: 67 | C40: 70 | D40: 67 | E40: 62 | F40: 69 | G40: 67 | H40: 64 | I40: 70 | J40: 68 | K40: 67 | L40: 67 | M40: 72 | N40: 70 | O40: 67 | P40: 62 | Q40: 65 | R40: 65 | S40: 69 | T40: 65 | U40: 69 | V40: 70 | W40: 71 | X40: 67 | Y40: 68 | Z40: 72 | AA40: 68 | AB40: 66 | AC40: 68 | AD40: 67 | AE40: 72 | AF40: 70 | AG40: 68 | AH40: 67 | AI40: 73 | AJ40: 67 | AK40: 68 | AL40: 67 | AM40: 66 | AN40: 72 | AO40: 63 | AP40: 74 | AQ40: 72 | AR40: 64 | AS40: 65 | AT40: 67 | AU40: 69 | AV40: 67 | AW40: 70 | AX40: 68 | AY40: 68 | AZ40: 68 | BA40: 72 | BB40: 66 | BC40: 64 | BD40: 68 | BE40: 65 | BF40: 70 | BG40: 72 | BH40: 65 | BI40: 73 | BJ40: 68 | BK40: 67 | BL40: 74 | BM40: 65 | BN40: 64 | BO40: 66 | BP40: 72 | BQ40: 71 | BR40: 69 | BS40: 68 | BT40: 68 | BU40: 67 | BV40: 69 | BW40: 69 | BX40: 71 | BY40: 67 | BZ40: 66 | CA40: 71 | CB40: 65
A41: =sampx(pop, popsize,newSample) -> 75 | B41: 74 | C41: 68 | D41: 68 | E41: 68 | F41: 65 | G41: 68 | H41: 70 | I41: 69 | J41: 69 | K41: =sampx(pop, popsize,newSample) -> 68 | L41: 69 | M41: 72 | N41: 67 | O41: 73 | P41: 67 | Q41: 74 | R41: 66 | S41: 66 | T41: 64 | U41: =sampx(pop, popsize,newSample) -> 64 | V41: 72 | W41: 67 | X41: 74 | Y41: 66 | Z41: 71 | AA41: 62 | AB41: 67 | AC41: 68 | AD41: 68 | AE41: =sampx(pop, popsize,newSample) -> 70 | AF41: 65 | AG41: 73 | AH41: 71 | AI41: 66 | AJ41: 68 | AK41: 69 | AL41: 70 | AM41: 72 | AN41: 62 | AO41: =sampx(pop, popsize,newSample) -> 67 | AP41: 66 | AQ41: 64 | AR41: 67 | AS41: 68 | AT41: 68 | AU41: 64 | AV41: 66 | AW41: 70 | AX41: 62 | AY41: =sampx(pop, popsize,newSample) -> 74 | AZ41: 66 | BA41: 73 | BB41: 69 | BC41: 73 | BD41: 73 | BE41: 61 | BF41: 74 | BG41: 67 | BH41: 64 | BI41: =sampx(pop, popsize,newSample) -> 64 | BJ41: 63 | BK41: 69 | BL41: 65 | BM41: 68 | BN41: 70 | BO41: 73 | BP41: 68 | BQ41: 71 | BR41: 66 | BS41: =sampx(pop, popsize,newSample) -> 67 | BT41: 69 | BU41: 66 | BV41: 67 | BW41: 66 | BX41: 66 | BY41: 68 | BZ41: 65 | CA41: 68 | CB41: 64
A42: 69 | B42: 64 | C42: 66 | D42: 72 | E42: 71 | F42: 62 | G42: 65 | H42: 68 | I42: 62 | J42: 69 | K42: 69 | L42: 68 | M42: 74 | N42: 67 | O42: 64 | P42: 72 | Q42: 72 | R42: 69 | S42: 61 | T42: 70 | U42: 69 | V42: 67 | W42: 68 | X42: 69 | Y42: 69 | Z42: 64 | AA42: 71 | AB42: 68 | AC42: 75 | AD42: 74 | AE42: 69 | AF42: 71 | AG42: 74 | AH42: 68 | AI42: 69 | AJ42: 68 | AK42: 66 | AL42: 66 | AM42: 72 | AN42: 75 | AO42: 69 | AP42: 69 | AQ42: 69 | AR42: 67 | AS42: 71 | AT42: 68 | AU42: 61 | AV42: 69 | AW42: 72 | AX42: 68 | AY42: 70 | AZ42: 67 | BA42: 67 | BB42: 72 | BC42: 68 | BD42: 67 | BE42: 62 | BF42: 75 | BG42: 74 | BH42: 74 | BI42: 72 | BJ42: 69 | BK42: 71 | BL42: 69 | BM42: 62 | BN42: 70 | BO42: 73 | BP42: 63 | BQ42: 70 | BR42: 66 | BS42: 71 | BT42: 72 | BU42: 70 | BV42: 67 | BW42: 68 | BX42: 67 | BY42: 73 | BZ42: 69 | CA42: 70 | CB42: 64
A43: 69 | B43: 70 | C43: 68 | D43: 75 | E43: 69 | F43: 68 | G43: 68 | H43: 71 | I43: 68 | J43: 68 | K43: 66 | L43: 64 | M43: 69 | N43: 67 | O43: 66 | P43: 68 | Q43: 66 | R43: 72 | S43: 67 | T43: 66 | U43: 73 | V43: 66 | W43: 66 | X43: 74 | Y43: 69 | Z43: 68 | AA43: 74 | AB43: 63 | AC43: 73 | AD43: 71 | AE43: 66 | AF43: 74 | AG43: 69 | AH43: 65 | AI43: 61 | AJ43: 67 | AK43: 68 | AL43: 66 | AM43: 66 | AN43: 66 | AO43: 67 | AP43: 66 | AQ43: 66 | AR43: 72 | AS43: 73 | AT43: 70 | AU43: 70 | AV43: 71 | AW43: 68 | AX43: 63 | AY43: 66 | AZ43: 67 | BA43: 72 | BB43: 68 | BC43: 66 | BD43: 67 | BE43: 69 | BF43: 71 | BG43: 62 | BH43: 64 | BI43: 69 | BJ43: 62 | BK43: 66 | BL43: 68 | BM43: 66 | BN43: 61 | BO43: 67 | BP43: 69 | BQ43: 67 | BR43: 69 | BS43: 62 | BT43: 68 | BU43: 70 | BV43: 69 | BW43: 71 | BX43: 67 | BY43: 66 | BZ43: 66 | CA43: 71 | CB43: 64
A44: 68 | B44: 69 | C44: 73 | D44: 72 | E44: 69 | F44: 66 | G44: 68 | H44: 65 | I44: 68 | J44: 74 | K44: 67 | L44: 72 | M44: 70 | N44: 66 | O44: 67 | P44: 64 | Q44: 66 | R44: 72 | S44: 68 | T44: 70 | U44: 71 | V44: 67 | W44: 70 | X44: 70 | Y44: 66 | Z44: 69 | AA44: 71 | AB44: 68 | AC44: 67 | AD44: 65 | AE44: 69 | AF44: 66 | AG44: 69 | AH44: 68 | AI44: 66 | AJ44: 70 | AK44: 67 | AL44: 67 | AM44: 71 | AN44: 64 | AO44: 69 | AP44: 69 | AQ44: 70 | AR44: 72 | AS44: 68 | AT44: 68 | AU44: 63 | AV44: 69 | AW44: 74 | AX44: 67 | AY44: 66 | AZ44: 67 | BA44: 62 | BB44: 71 | BC44: 65 | BD44: 69 | BE44: 68 | BF44: 67 | BG44: 74 | BH44: 68 | BI44: 69 | BJ44: 66 | BK44: 66 | BL44: 67 | BM44: 68 | BN44: 67 | BO44: 66 | BP44: 69 | BQ44: 66 | BR44: 68 | BS44: 63 | BT44: 64 | BU44: 70 | BV44: 65 | BW44: 72 | BX44: 73 | BY44: 67 | BZ44: 67 | CA44: 65 | CB44: 65
A45: 71 | B45: 66 | C45: 69 | D45: 68 | E45: 73 | F45: 66 | G45: 70 | H45: 68 | I45: 65 | J45: 68 | K45: 71 | L45: 66 | M45: 75 | N45: 71 | O45: 70 | P45: 69 | Q45: 66 | R45: 64 | S45: 67 | T45: 70 | U45: 72 | V45: 67 | W45: 64 | X45: 70 | Y45: 68 | Z45: 67 | AA45: 71 | AB45: 66 | AC45: 72 | AD45: 68 | AE45: 72 | AF45: 67 | AG45: 68 | AH45: 70 | AI45: 69 | AJ45: 69 | AK45: 69 | AL45: 70 | AM45: 70 | AN45: 70 | AO45: 72 | AP45: 65 | AQ45: 68 | AR45: 69 | AS45: 68 | AT45: 73 | AU45: 70 | AV45: 66 | AW45: 64 | AX45: 66 | AY45: 65 | AZ45: 68 | BA45: 66 | BB45: 70 | BC45: 69 | BD45: 73 | BE45: 73 | BF45: 68 | BG45: 67 | BH45: 68 | BI45: 69 | BJ45: 71 | BK45: 64 | BL45: 72 | BM45: 68 | BN45: 71 | BO45: 67 | BP45: 68 | BQ45: 68 | BR45: 73 | BS45: 66 | BT45: 68 | BU45: 69 | BV45: 69 | BW45: 67 | BX45: 66 | BY45: 70 | BZ45: 70 | CA45: 67 | CB45: 73
A46: 68 | B46: 71 | C46: 70 | D46: 72 | E46: 69 | F46: 68 | G46: 68 | H46: 71 | I46: 64 | J46: 64 | K46: 69 | L46: 66 | M46: 70 | N46: 66 | O46: 70 | P46: 69 | Q46: 72 | R46: 68 | S46: 69 | T46: 62 | U46: 68 | V46: 74 | W46: 65 | X46: 65 | Y46: 70 | Z46: 69 | AA46: 69 | AB46: 71 | AC46: 70 | AD46: 72 | AE46: 66 | AF46: 66 | AG46: 68 | AH46: 66 | AI46: 68 | AJ46: 70 | AK46: 67 | AL46: 66 | AM46: 70 | AN46: 75 | AO46: 69 | AP46: 65 | AQ46: 68 | AR46: 74 | AS46: 67 | AT46: 65 | AU46: 68 | AV46: 62 | AW46: 68 | AX46: 65 | AY46: 68 | AZ46: 69 | BA46: 73 | BB46: 64 | BC46: 68 | BD46: 66 | BE46: 67 | BF46: 67 | BG46: 62 | BH46: 66 | BI46: 72 | BJ46: 68 | BK46: 67 | BL46: 69 | BM46: 69 | BN46: 61 | BO46: 66 | BP46: 68 | BQ46: 69 | BR46: 72 | BS46: 67 | BT46: 65 | BU46: 66 | BV46: 71 | BW46: 65 | BX46: 68 | BY46: 74 | BZ46: 72 | CA46: 66 | CB46: 64
A47: 68 | B47: 65 | C47: 67 | D47: 67 | E47: 64 | F47: 69 | G47: 69 | H47: 68 | I47: 73 | J47: 68 | K47: 70 | L47: 67 | M47: 65 | N47: 68 | O47: 66 | P47: 65 | Q47: 69 | R47: 67 | S47: 68 | T47: 68 | U47: 68 | V47: 70 | W47: 66 | X47: 71 | Y47: 72 | Z47: 62 | AA47: 68 | AB47: 69 | AC47: 66 | AD47: 65 | AE47: 68 | AF47: 64 | AG47: 66 | AH47: 65 | AI47: 73 | AJ47: 66 | AK47: 68 | AL47: 72 | AM47: 67 | AN47: 65 | AO47: 67 | AP47: 67 | AQ47: 74 | AR47: 68 | AS47: 67 | AT47: 67 | AU47: 66 | AV47: 68 | AW47: 67 | AX47: 62 | AY47: 72 | AZ47: 67 | BA47: 67 | BB47: 68 | BC47: 67 | BD47: 72 | BE47: 74 | BF47: 68 | BG47: 66 | BH47: 68 | BI47: 62 | BJ47: 67 | BK47: 67 | BL47: 69 | BM47: 69 | BN47: 71 | BO47: 70 | BP47: 69 | BQ47: 73 | BR47: 66 | BS47: 67 | BT47: 69 | BU47: 67 | BV47: 71 | BW47: 69 | BX47: 71 | BY47: 64 | BZ47: 67 | CA47: 66 | CB47: 66
A48: 68 | B48: 73 | C48: 67 | D48: 67 | E48: 62 | F48: 66 | G48: 69 | H48: 68 | I48: 70 | J48: 67 | K48: 66 | L48: 71 | M48: 69 | N48: 72 | O48: 70 | P48: 69 | Q48: 67 | R48: 67 | S48: 65 | T48: 66 | U48: 68 | V48: 67 | W48: 72 | X48: 67 | Y48: 68 | Z48: 68 | AA48: 64 | AB48: 66 | AC48: 64 | AD48: 61 | AE48: 66 | AF48: 70 | AG48: 69 | AH48: 69 | AI48: 69 | AJ48: 71 | AK48: 66 | AL48: 73 | AM48: 69 | AN48: 64 | AO48: 66 | AP48: 70 | AQ48: 64 | AR48: 68 | AS48: 66 | AT48: 69 | AU48: 64 | AV48: 65 | AW48: 66 | AX48: 67 | AY48: 73 | AZ48: 73 | BA48: 62 | BB48: 64 | BC48: 66 | BD48: 70 | BE48: 66 | BF48: 68 | BG48: 68 | BH48: 64 | BI48: 71 | BJ48: 69 | BK48: 69 | BL48: 72 | BM48: 70 | BN48: 68 | BO48: 67 | BP48: 71 | BQ48: 67 | BR48: 67 | BS48: 65 | BT48: 70 | BU48: 66 | BV48: 66 | BW48: 65 | BX48: 69 | BY48: 69 | BZ48: 68 | CA48: 69 | CB48: 69
A49: 64 | B49: 66 | C49: 67 | D49: 68 | E49: 72 | F49: 74 | G49: 65 | H49: 74 | I49: 66 | J49: 69 | K49: 66 | L49: 72 | M49: 71 | N49: 63 | O49: 69 | P49: 69 | Q49: 68 | R49: 69 | S49: 65 | T49: 70 | U49: 73 | V49: 65 | W49: 69 | X49: 67 | Y49: 69 | Z49: 70 | AA49: 65 | AB49: 66 | AC49: 68 | AD49: 67 | AE49: 69 | AF49: 64 | AG49: 67 | AH49: 66 | AI49: 65 | AJ49: 66 | AK49: 66 | AL49: 71 | AM49: 68 | AN49: 69 | AO49: 67 | AP49: 68 | AQ49: 68 | AR49: 68 | AS49: 64 | AT49: 69 | AU49: 67 | AV49: 64 | AW49: 63 | AX49: 71 | AY49: 69 | AZ49: 65 | BA49: 73 | BB49: 67 | BC49: 74 | BD49: 65 | BE49: 65 | BF49: 69 | BG49: 67 | BH49: 69 | BI49: 69 | BJ49: 67 | BK49: 73 | BL49: 69 | BM49: 69 | BN49: 70 | BO49: 73 | BP49: 66 | BQ49: 67 | BR49: 75 | BS49: 74 | BT49: 68 | BU49: 68 | BV49: 65 | BW49: 66 | BX49: 70 | BY49: 67 | BZ49: 70 | CA49: 69 | CB49: 62
A50: 67 | B50: 67 | C50: 68 | D50: 66 | E50: 68 | F50: 71 | G50: 67 | H50: 69 | I50: 66 | J50: 67 | K50: 73 | L50: 69 | M50: 67 | N50: 68 | O50: 67 | P50: 61 | Q50: 68 | R50: 66 | S50: 70 | T50: 67 | U50: 71 | V50: 67 | W50: 64 | X50: 66 | Y50: 67 | Z50: 65 | AA50: 65 | AB50: 66 | AC50: 62 | AD50: 67 | AE50: 69 | AF50: 67 | AG50: 68 | AH50: 73 | AI50: 69 | AJ50: 72 | AK50: 62 | AL50: 71 | AM50: 69 | AN50: 70 | AO50: 70 | AP50: 67 | AQ50: 70 | AR50: 68 | AS50: 68 | AT50: 65 | AU50: 69 | AV50: 66 | AW50: 67 | AX50: 65 | AY50: 68 | AZ50: 67 | BA50: 68 | BB50: 72 | BC50: 68 | BD50: 69 | BE50: 68 | BF50: 66 | BG50: 69 | BH50: 68 | BI50: 70 | BJ50: 69 | BK50: 67 | BL50: 68 | BM50: 68 | BN50: 69 | BO50: 68 | BP50: 69 | BQ50: 68 | BR50: 68 | BS50: 68 | BT50: 69 | BU50: 66 | BV50: 71 | BW50: 69 | BX50: 62 | BY50: 65 | BZ50: 68 | CA50: 65 | CB50: 74
A52: =AVERAGE(A1:A50) -> 67.88 | B52: 67.84 | C52: 67.98 | D52: 67.54 | E52: 68.48 | F52: 68.04 | G52: 68.12 | H52: 68.26 | I52: 67.3 | J52: 67.76 | K52: 68.16 | L52: =AVERAGE(L1:L50) -> 68.4 | M52: 68.32 | N52: 67.84 | O52: 68.5 | P52: 67.98 | Q52: 68.24 | R52: 67.96 | S52: 67.52 | T52: 68.12 | U52: 68.74 | V52: 68.68 | W52: 67.74 | X52: 67.8 | Y52: 67.5 | Z52: 67.84 | AA52: 67.76 | AB52: 68.5 | AC52: 68.74 | AD52: 67.54 | AE52: 67.92 | AF52: 68.2 | AG52: 68.56 | AH52: 67.6 | AI52: 67.38 | AJ52: 68.5 | AK52: 68.06 | AL52: =AVERAGE(AL1:AL50) -> 67.8 | AM52: 67.7 | AN52: 68.24 | AO52: 68.1 | AP52: 68.04 | AQ52: 68.48 | AR52: 68.46 | AS52: 68.14 | AT52: 68.56 | AU52: 67.42 | AV52: 68.1 | AW52: 68.28 | AX52: 66.84 | AY52: 67.74 | AZ52: 68.48 | BA52: 68.58 | BB52: 67.94 | BC52: 67.52 | BD52: 68.04 | BE52: 67.94 | BF52: 68.3 | BG52: 67.94 | BH52: 68.36 | BI52: 68 | BJ52: 67.58 | BK52: 68.08 | BL52: 67.98 | BM52: 67.96 | BN52: 67.66 | BO52: 68.54 | BP52: 68.14 | BQ52: 68.28 | BR52: 68.08 | BS52: 67.76 | BT52: 68.34 | BU52: 68.24 | BV52: 67.94 | BW52: 67.66 | BX52: 67.9 | BY52: 68.44 | BZ52: 68.48 | CA52: 68.5 | CB52: 67.76
A53: =STDEVA(A1:A50)/SQRT(50) -> 0.3518348407 | B53: =STDEVA(B1:B50)/SQRT(50) -> 0.4447975921 | C53: 0.3912199653 | D53: 0.4220552242 | E53: 0.4211161069 | F53: 0.3545160542 | G53: 0.3996324842 | H53: 0.378838181 | I53: 0.3040542379 | J53: 0.3753202714 | K53: 0.3584091836 | L53: 0.3380617019 | M53: 0.4024820949 | N53: 0.4024009575 | O53: 0.4220939058 | P53: 0.456687273 | Q53: 0.376406207 | R53: 0.3269650172 | S53: 0.3594099473 | T53: 0.3552980927 | U53: 0.3967315445 | V53: 0.3708126762 | W53: 0.4078915422 | X53: 0.3822596617 | Y53: 0.3846546291 | Z53: 0.4627865907 | AA53: 0.3849834346 | AB53: 0.3982102819 | AC53: 0.4387458936 | AD53: 0.4409729503 | AE53: 0.3690473118 | AF53: 0.4453844934 | AG53: 0.3737946615 | AH53: 0.4020356366 | AI53: 0.468510449 | AJ53: 0.3951233339 | AK53: 0.4251386329 | AL53: 0.3757984697 | AM53: 0.4022893669 | AN53: 0.4742857143 | AO53: 0.4022893669 | AP53: 0.3658481898 | AQ53: 0.400244823 | AR53: 0.4608864573 | AS53: 0.436133288 | AT53: 0.3919183588 | AU53: 0.3659931972 | AV53: 0.3835920452 | AW53: 0.4130918759 | AX53: 0.4231659104 | AY53: 0.3946685512 | AZ53: 0.4181982735 | BA53: 0.4572232072 | BB53: 0.4104850292 | BC53: 0.3738820069 | BD53: 0.3968858367 | BE53: 0.4439249799 | BF53: 0.4817061514 | BG53: 0.4222485969 | BH53: 0.4587115941 | BI53: 0.3938299643 | BJ53: 0.4445497608 | BK53: 0.3645965061 | BL53: 0.3481613513 | BM53: 0.3713846128 | BN53: =STDEVA(BN1:BN50)/SQRT(50) -> 0.4904059127 | BO53: 0.3824838265 | BP53: 0.3647867703 | BQ53: 0.4160455234 | BR53: 0.4099178614 | BS53: 0.447724405 | BT53: 0.4036668661 | BU53: 0.4046263078 | BV53: 0.3685714286 | BW53: 0.4486806055 | BX53: 0.3793119442 | BY53: 0.3489459346 | BZ53: 0.4093199936 | CA53: 0.44008348 | CB53: 0.4375814793
A54: =(A52-mean)/A53 -> -0.5305519667 | B54: -0.5095950848 | C54: -0.221529253 | D54: -1.247861978 | E54: 0.9815186989 | F54: -0.07521991276 | G54: 0.1334559513 | H54: 0.510332229 | I54: -2.521479957 | J54: -0.8170799449 | K54: 0.260409994 | L54: 0.9860132972 | M54: 0.6294275858 | N54: -0.5632856046 | O54: 1.026627789 | P54: -0.1897724587 | Q54: 0.4604954172 | R54: -0.3262326581 | S54: -1.52101151 | T54: 0.1501086958 | U54: 1.697201402 | V54: 1.654024721 | W54: -0.8008664874 | X54: -0.6976060866 | Y54: -1.473183016 | Z54: -0.4897865911 | AA54: -0.7965710707 | AB54: 1.088202272 | AC54: 1.534677231 | AD54: -1.194328737 | AE54: -0.3974196857 | AF54: 0.2993668062 | AG54: =(AG52-mean)/AG53 -> 1.319797697 | AH54: -1.160759456 | AI54: -1.465637892 | AJ54: 1.096703981 | AK54: -0.01568115939 | AL54: -0.7096001932 | AM54: -0.9114500578 | AN54: 0.3654618474 | AO54: 0.08285909616 | AP54: -0.07288997845 | AQ54: 1.032701261 | AR54: 0.8534278391 | AS54: 0.1681443159 | AT54: 1.258765562 | AU54: -1.766881657 | AV54: 0.08689787432 | AW54: 0.5164307162 | AX54: -2.898784227 | AY54: -0.8276987504 | AZ54: 0.9883669053 | BA54: 1.122719331 | BB54: -0.3085780422 | BC54: -1.462136868 | BD54: -0.06718976643 | BE54: -0.2853334964 | BF54: 0.4843893578 | BG54: -0.2999812613 | BH54: 0.639472246 | BI54: -0.1692777917 | BJ54: -1.094740588 | BK54: 0.03657010726 | BL54: -0.2489267299 | BM54: =(BM52-mean)/BM53 -> -0.287213479 | BN54: -0.8292450318 | BO54: 1.237525094 | BP54: 0.2010306823 | BQ54: 0.5127644004 | BR54: 0.03252684157 | BS54: -0.6849451654 | BT54: 0.6771260074 | BU54: 0.4283788028 | BV54: -0.3436692506 | BW54: -0.9063611436 | BX54: -0.4393920867 | BY54: 1.06988876 | BZ54: 1.009804895 | CA54: 0.9846616676 | CB54: -0.700821861
A56: 1 | B56: 2 | C56: 3 | D56: 4 | E56: 5 | F56: 6 | G56: 7 | H56: 8 | I56: 9 | J56: 10 | K56: 11 | L56: 12 | M56: 13 | N56: 14 | O56: 15 | P56: 16 | Q56: 17 | R56: 18 | S56: 19 | T56: 20 | U56: 21 | V56: 22 | W56: 23 | X56: 24 | Y56: 25 | Z56: 26 | AA56: 27 | AB56: 28 | AC56: 29 | AD56: 30 | AE56: 31 | AF56: 32 | AG56: 33 | AH56: 34 | AI56: 35 | AJ56: 36 | AK56: 37 | AL56: 38 | AM56: 39 | AN56: 40 | AO56: 41 | AP56: 42 | AQ56: 43 | AR56: 44 | AS56: 45 | AT56: 46 | AU56: 47 | AV56: 48 | AW56: 49 | AX56: 50 | AY56: 51 | AZ56: 52 | BA56: 53 | BB56: 54 | BC56: 55 | BD56: 56 | BE56: 57 | BF56: 58 | BG56: 59 | BH56: 60 | BI56: 61 | BJ56: 62 | BK56: 63 | BL56: 64 | BM56: 65 | BN56: 66 | BO56: 67 | BP56: 68 | BQ56: 69 | BR56: 70 | BS56: 71 | BT56: 72 | BU56: 73 | BV56: 74 | BW56: 75 | BX56: 76 | BY56: 77 | BZ56: 78 | CA56: 79 | CB56: 80
L58: =MAX(A52:CB52) -> 68.74

Sheet Sheet4
B1: =mean-3.5*sd -> 66.65957352 | C1: =NORMDIST(B1,mean,sd,FALSE) -> 0.002170708776 | D1: x's | E1: =samples!A52 -> 67.88 | F1: =samples!A52 -> 67.88 | G1: =IF(OR(samples!A$52>Right,samples!A$52<Left),1,0) -> 0 | H1: =Left -> 67.12994466 | N1: =z -> 2.33
B2: =B1+7*sd/100 -> 66.68771539 | C2: 0.002766557421 | D2: y's | E2: 0 | F2: =samples!A$53 -> 0.3518348407 | H2: =Right -> 69.00338867
B3: 66.71585725 | C3: 0.003508728563 | E3: =samples!B$52 -> 67.84 | F3: =samples!B$52 -> 67.84 | G3: =IF(OR(samples!B$52>Right,samples!B$52<Left),1,0) -> 0 | J3: For Pop'n Histogram
B4: 66.74399911 | C4: 0.004428246754 | E4: 0 | F4: =samples!B$53 -> 0.4447975921 | J4: Pop Freqs
B5: 66.77214098 | C5: 0.005561421489 | E5: =samples!C$52 -> 67.98 | F5: =samples!C$52 -> 67.98 | G5: =IF(OR(samples!C$52>Right,samples!C$52<Left),1,0) -> 0 | J5: 61 | K5: =IF(pop=1,Sheet2!D5,IF(pop=2,Sheet2!F5,IF(pop=3,Sheet2!H5,Sheet2!J5))) -> 4
B6: 66.80028284 | C6: 0.006950431466 | E6: 0 | F6: =samples!C$53 -> 0.3912199653 | J6: 62 | K6: =IF(pop=1,Sheet2!D6,IF(pop=2,Sheet2!F6,IF(pop=3,Sheet2!H6,Sheet2!J6))) -> 12
B7: 66.8284247 | C7: 0.00864389887 | E7: =samples!D$52 -> 67.54 | F7: =samples!D$52 -> 67.54 | G7: =IF(OR(samples!D$52>Right,samples!D$52<Left),1,0) -> 0 | J7: 63 | K7: =IF(pop=1,Sheet2!D7,IF(pop=2,Sheet2!F7,IF(pop=3,Sheet2!H7,Sheet2!J7))) -> 6
B8: 66.85656656 | C8: 0.01069743228 | E8: 0 | F8: =samples!D$53 -> 0.4220552242 | J8: 64 | K8: =IF(pop=1,Sheet2!D8,IF(pop=2,Sheet2!F8,IF(pop=3,Sheet2!H8,Sheet2!J8))) -> 16
B9: 66.88470843 | C9: 0.01317411262 | D9: series 5 | E9: =samples!E$52 -> 68.48 | F9: =samples!E$52 -> 68.48 | G9: =IF(OR(samples!E$52>Right,samples!E$52<Left),1,0) -> 0 | J9: 65 | K9: =IF(pop=1,Sheet2!D9,IF(pop=2,Sheet2!F9,IF(pop=3,Sheet2!H9,Sheet2!J9))) -> 28
B10: 66.91285029 | C10: 0.01614489239 | E10: 0 | F10: =samples!E$53 -> 0.4211161069 | J10: 66 | K10: =IF(pop=1,Sheet2!D10,IF(pop=2,Sheet2!F10,IF(pop=3,Sheet2!H10,Sheet2!J10))) -> 54
B11: 66.94099215 | C11: 0.01968887468 | D11: 16 | E11: =samples!F$52 -> 68.04 | F11: =samples!F$52 -> 68.04 | G11: =IF(OR(samples!F$52>Right,samples!F$52<Left),1,0) -> 0 | J11: 67 | K11: =IF(pop=1,Sheet2!D11,IF(pop=2,Sheet2!F11,IF(pop=3,Sheet2!H11,Sheet2!J11))) -> 60
B12: 66.96913402 | C12: 0.0238934351 | E12: 0 | F12: =samples!F$53 -> 0.3545160542 | J12: 68 | K12: =IF(pop=1,Sheet2!D12,IF(pop=2,Sheet2!F12,IF(pop=3,Sheet2!H12,Sheet2!J12))) -> 70
B13: 66.99727588 | C13: 0.02885414737 | D13: 18 | E13: =samples!G$52 -> 68.12 | F13: =samples!G$52 -> 68.12 | G13: =IF(OR(samples!G$52>Right,samples!G$52<Left),1,0) -> 0 | J13: 69 | K13: =IF(pop=1,Sheet2!D13,IF(pop=2,Sheet2!F13,IF(pop=3,Sheet2!H13,Sheet2!J13))) -> 56
B14: 67.02541774 | C14: 0.034674472 | E14: 0 | F14: =samples!G$53 -> 0.3996324842 | J14: 70 | K14: =IF(pop=1,Sheet2!D14,IF(pop=2,Sheet2!F14,IF(pop=3,Sheet2!H14,Sheet2!J14))) -> 32
B15: 67.0535596 | C15: 0.04146516757 | D15: 20 | E15: =samples!H$52 -> 68.26 | F15: =samples!H$52 -> 68.26 | G15: =IF(OR(samples!H$52>Right,samples!H$52<Left),1,0) -> 0 | J15: 71 | K15: =IF(pop=1,Sheet2!D15,IF(pop=2,Sheet2!F15,IF(pop=3,Sheet2!H15,Sheet2!J15))) -> 28
B16: 67.08170147 | C16: 0.04934338622 | E16: 0 | F16: =samples!H$53 -> 0.378838181 | J16: 72 | K16: =IF(pop=1,Sheet2!D16,IF(pop=2,Sheet2!F16,IF(pop=3,Sheet2!H16,Sheet2!J16))) -> 20
B17: 67.10984333 | C17: 0.05843141885 | D17: 22 | E17: =samples!I$52 -> 67.3 | F17: =samples!I$52 -> 67.3 | G17: =IF(OR(samples!I$52>Right,samples!I$52<Left),1,0) -> 0 | J17: 73 | K17: =IF(pop=1,Sheet2!D17,IF(pop=2,Sheet2!F17,IF(pop=3,Sheet2!H17,Sheet2!J17))) -> 18
B18: 67.13798519 | C18: 0.06885506162 | E18: 0 | F18: =samples!I$53 -> 0.3040542379 | J18: 74 | K18: =IF(pop=1,Sheet2!D18,IF(pop=2,Sheet2!F18,IF(pop=3,Sheet2!H18,Sheet2!J18))) -> 12
B19: 67.16612706 | C19: 0.08074158443 | D19: 24 | E19: =samples!J$52 -> 67.76 | F19: =samples!J$52 -> 67.76 | G19: =IF(OR(samples!J$52>Right,samples!J$52<Left),1,0) -> 0 | J19: 75 | K19: =IF(pop=1,Sheet2!D19,IF(pop=2,Sheet2!F19,IF(pop=3,Sheet2!H19,Sheet2!J19))) -> 4
B20: 67.19426892 | C20: 0.09421729271 | E20: 0 | F20: =samples!J$53 -> 0.3753202714
B21: 67.22241078 | C21: 0.1094046878 | D21: 26 | E21: =samples!K$52 -> 68.16 | F21: =samples!K$52 -> 68.16 | G21: =IF(OR(samples!K$52>Right,samples!K$52<Left),1,0) -> 0 | H21: pop= | I21: =IF(pop=1,"normal",IF(pop=2,"uniform",IF(pop=3,"U-shaped","skewed"))) -> normal
B22: 67.25055264 | C22: 0.1264192468 | E22: 0 | F22: =samples!K$53 -> 0.3584091836 | H22: pop n= | I22: =IF(pop=1, 210,IF(pop=2,424,IF(pop=3,397,410))) -> 210
B23: 67.27869451 | C23: 0.1453658603 | D23: 28 | E23: =samples!L$52 -> 68.4 | F23: =samples!L$52 -> 68.4 | G23: =IF(OR(samples!L$52>Right,samples!L$52<Left),1,0) -> 0 | I23: =IF(pop=1, 210,IF(pop=2,424,IF(pop=3,397,410))) -> 210
B24: 67.30683637 | C24: 0.1663349854 | E24: 0 | F24: =samples!L$53 -> 0.3380617019 | I24: SigLevel= | J24: =IF(alpha=1, 0.1,IF(alpha=2, 0.05,IF(alpha=3,0.02,0.01))) -> 2% | K24: =100*J24 -> 2
B25: 67.33497823 | C25: 0.1893985906 | D25: 30 | E25: =samples!M$52 -> 68.32 | F25: =samples!M$52 -> 68.32 | G25: =IF(OR(samples!M$52>Right,samples!M$52<Left),1,0) -> 0 | I25: z-value= | J25: =IF(alpha=1, 1.645,IF(alpha=2, 1.96,IF(alpha=3,2.33,2.57))) -> 2.33
B26: 67.3631201 | C26: 0.2146059893 | E26: 0 | F26: =samples!M$53 -> 0.4024820949
B27: 67.39126196 | C27: 0.241979676 | D27: 32 | E27: =samples!N$52 -> 67.84 | F27: =samples!N$52 -> 67.84 | G27: =IF(OR(samples!N$52>Right,samples!N$52<Left),1,0) -> 0 | H27: misses= | I27: =COUNTIF(G1:G160,1) -> 1 | J27: =I27/80 -> 1.25%
B28: 67.41940382 | C28: 0.2715112946 | E28: 0 | F28: =samples!N$53 -> 0.4024009575 | H28: hits= | I28: =80-I27 -> 79
B29: 67.44754568 | C29: 0.303157884 | D29: 34 | E29: =samples!O$52 -> 68.5 | F29: =samples!O$52 -> 68.5 | G29: =IF(OR(samples!O$52>Right,samples!O$52<Left),1,0) -> 0
B30: 67.47568755 | C30: 0.3368385512 | E30: 0 | F30: =samples!O$53 -> 0.4220939058
B31: 67.50382941 | C31: 0.3724317275 | D31: 36 | E31: =samples!P$52 -> 67.98 | F31: =samples!P$52 -> 67.98 | G31: =IF(OR(samples!P$52>Right,samples!P$52<Left),1,0) -> 0 | K31: New Sample = | M31: =IF(HypoTests!E31=1,-1,1) -> 1
B32: 67.53197127 | C32: 0.4097731603 | E32: 0 | F32: =samples!P$53 -> 0.456687273
B33: 67.56011314 | C33: =NORMDIST(B33,mean,sd,FALSE) -> 0.448654785 | D33: 38 | E33: =samples!Q$52 -> 68.24 | F33: =samples!Q$52 -> 68.24 | G33: =IF(OR(samples!Q$52>Right,samples!Q$52<Left),1,0) -> 0
B34: =B33+7*sd/100 -> 67.588255 | C34: 0.4888246025 | E34: 0 | F34: =samples!Q$53 -> 0.376406207
B35: 67.61639686 | C35: 0.5299876684 | D35: 40 | E35: =samples!R$52 -> 67.96 | F35: =samples!R$52 -> 67.96 | G35: =IF(OR(samples!R$52>Right,samples!R$52<Left),1,0) -> 0
B36: 67.64453872 | C36: 0.5718082678 | E36: 0 | F36: =samples!R$53 -> 0.3269650172
B37: 67.67268059 | C37: 0.6139133161 | D37: 42 | E37: =samples!S$52 -> 67.52 | F37: =samples!S$52 -> 67.52 | G37: =IF(OR(samples!S$52>Right,samples!S$52<Left),1,0) -> 0
B38: 67.70082245 | C38: 0.6558969834 | E38: 0 | F38: =samples!S$53 -> 0.3594099473
B39: 67.72896431 | C39: 0.6973265013 | D39: 44 | E39: =samples!T$52 -> 68.12 | F39: =samples!T$52 -> 68.12 | G39: =IF(OR(samples!T$52>Right,samples!T$52<Left),1,0) -> 0
B40: 67.75710618 | C40: 0.7377490596 | E40: 0 | F40: =samples!T$53 -> 0.3552980927
B41: 67.78524804 | C41: 0.7766996611 | D41: 46 | E41: =samples!U$52 -> 68.74 | F41: =samples!U$52 -> 68.74 | G41: =IF(OR(samples!U$52>Right,samples!U$52<Left),1,0) -> 0
B42: 67.8133899 | C42: 0.8137097575 | E42: 0 | F42: =samples!U$53 -> 0.3967315445
B43: 67.84153176 | C43: 0.8483164506 | D43: 48 | E43: =samples!V$52 -> 68.68 | F43: =samples!V$52 -> 68.68 | G43: =IF(OR(samples!V$52>Right,samples!V$52<Left),1,0) -> 0
B44: 67.86967363 | C44: 0.8800720148 | E44: 0 | F44: =samples!V$53 -> 0.3708126762
B45: 67.89781549 | C45: 0.908553468 | D45: 50 | E45: =samples!W$52 -> 67.74 | F45: =samples!W$52 -> 67.74 | G45: =IF(OR(samples!W$52>Right,samples!W$52<Left),1,0) -> 0
B46: 67.92595735 | C46: 0.9333719103 | E46: 0 | F46: =samples!W$53 -> 0.4078915422
B47: 67.95409922 | C47: 0.9541813418 | D47: 52 | E47: =samples!X$52 -> 67.8 | F47: =samples!X$52 -> 67.8 | G47: =IF(OR(samples!X$52>Right,samples!X$52<Left),1,0) -> 0
B48: 67.98224108 | C48: 0.9706866805 | E48: 0 | F48: =samples!X$53 -> 0.3822596617
B49: 68.01038294 | C49: 0.9826507225 | D49: 54 | E49: =samples!Y$52 -> 67.5 | F49: =samples!Y$52 -> 67.5 | G49: =IF(OR(samples!Y$52>Right,samples!Y$52<Left),1,0) -> 0
B50: 68.0385248 | C50: 0.9898998131 | E50: 0 | F50: =samples!Y$53 -> 0.3846546291
B51: 68.06666667 | C51: 0.992328041 | D51: 56 | E51: =samples!Z$52 -> 67.84 | F51: =samples!Z$52 -> 67.84 | G51: =IF(OR(samples!Z$52>Right,samples!Z$52<Left),1,0) -> 0
B52: 68.09480853 | C52: 0.9898998131 | E52: 0 | F52: =samples!Z$53 -> 0.4627865907
B53: 68.12295039 | C53: 0.9826507225 | D53: 58 | E53: =samples!AA$52 -> 67.76 | F53: =samples!AA$52 -> 67.76 | G53: =IF(OR(samples!AA$52>Right,samples!AA$52<Left),1,0) -> 0
B54: 68.15109226 | C54: 0.9706866805 | E54: 0 | F54: =samples!AA$53 -> 0.3849834346
B55: 68.17923412 | C55: 0.9541813418 | D55: 60 | E55: =samples!AB$52 -> 68.5 | F55: =samples!AB$52 -> 68.5 | G55: =IF(OR(samples!AB$52>Right,samples!AB$52<Left),1,0) -> 0
B56: 68.20737598 | C56: 0.9333719103 | E56: 0 | F56: =samples!AB$53 -> 0.3982102819
B57: 68.23551784 | C57: 0.908553468 | D57: 62 | E57: =samples!AC$52 -> 68.74 | F57: =samples!AC$52 -> 68.74 | G57: =IF(OR(samples!AC$52>Right,samples!AC$52<Left),1,0) -> 0
B58: 68.26365971 | C58: 0.8800720148 | E58: 0 | F58: =samples!AC$53 -> 0.4387458936
B59: 68.29180157 | C59: 0.8483164506 | D59: 64 | E59: =samples!AD$52 -> 67.54 | F59: =samples!AD$52 -> 67.54 | G59: =IF(OR(samples!AD$52>Right,samples!AD$52<Left),1,0) -> 0
B60: 68.31994343 | C60: 0.8137097575 | E60: 0 | F60: =samples!AD$53 -> 0.4409729503
B61: 68.3480853 | C61: 0.7766996611 | D61: 66 | E61: =samples!AE$52 -> 67.92 | F61: =samples!AE$52 -> 67.92 | G61: =IF(OR(samples!AE$52>Right,samples!AE$52<Left),1,0) -> 0
B62: 68.37622716 | C62: 0.7377490596 | E62: 0 | F62: =samples!AE$53 -> 0.3690473118
B63: 68.40436902 | C63: 0.6973265013 | D63: 68 | E63: =samples!AF$52 -> 68.2 | F63: =samples!AF$52 -> 68.2 | G63: =IF(OR(samples!AF$52>Right,samples!AF$52<Left),1,0) -> 0
B64: 68.43251088 | C64: 0.6558969834 | E64: 0 | F64: =samples!AF$53 -> 0.4453844934
B65: 68.46065275 | C65: =NORMDIST(B65,mean,sd,FALSE) -> 0.6139133161 | D65: 70 | E65: =samples!AG$52 -> 68.56 | F65: =samples!AG$52 -> 68.56 | G65: =IF(OR(samples!AG$52>Right,samples!AG$52<Left),1,0) -> 0
B66: =B65+7*sd/100 -> 68.48879461 | C66: 0.5718082678 | E66: 0 | F66: =samples!AG$53 -> 0.3737946615
B67: 68.51693647 | C67: 0.5299876684 | D67: 72 | E67: =samples!AH$52 -> 67.6 | F67: =samples!AH$52 -> 67.6 | G67: =IF(OR(samples!AH$52>Right,samples!AH$52<Left),1,0) -> 0
B68: 68.54507834 | C68: 0.4888246025 | E68: 0 | F68: =samples!AH$53 -> 0.4020356366
B69: 68.5732202 | C69: 0.448654785 | D69: 74 | E69: =samples!AI$52 -> 67.38 | F69: =samples!AI$52 -> 67.38 | G69: =IF(OR(samples!AI$52>Right,samples!AI$52<Left),1,0) -> 0
B70: 68.60136206 | C70: 0.4097731603 | E70: 0 | F70: =samples!AI$53 -> 0.468510449
B71: 68.62950392 | C71: 0.3724317275 | D71: 76 | E71: =samples!AJ$52 -> 68.5 | F71: =samples!AJ$52 -> 68.5 | G71: =IF(OR(samples!AJ$52>Right,samples!AJ$52<Left),1,0) -> 0
B72: 68.65764579 | C72: 0.3368385512 | E72: 0 | F72: =samples!AJ$53 -> 0.3951233339
B73: 68.68578765 | C73: 0.303157884 | D73: 78 | E73: =samples!AK$52 -> 68.06 | F73: =samples!AK$52 -> 68.06 | G73: =IF(OR(samples!AK$52>Right,samples!AK$52<Left),1,0) -> 0
B74: 68.71392951 | C74: 0.2715112946 | E74: 0 | F74: =samples!AK$53 -> 0.4251386329
B75: 68.74207137 | C75: 0.241979676 | D75: 80 | E75: =samples!AL$52 -> 67.8 | F75: =samples!AL$52 -> 67.8 | G75: =IF(OR(samples!AL$52>Right,samples!AL$52<Left),1,0) -> 0
B76: 68.77021324 | C76: 0.2146059893 | E76: 0 | F76: =samples!AL$53 -> 0.3757984697
B77: 68.7983551 | C77: 0.1893985906 | D77: 82 | E77: =samples!AM$52 -> 67.7 | F77: =samples!AM$52 -> 67.7 | G77: =IF(OR(samples!AM$52>Right,samples!AM$52<Left),1,0) -> 0
B78: 68.82649696 | C78: 0.1663349854 | E78: 0 | F78: =samples!AM$53 -> 0.4022893669
B79: 68.85463883 | C79: 0.1453658603 | D79: 84 | E79: =samples!AN$52 -> 68.24 | F79: =samples!AN$52 -> 68.24 | G79: =IF(OR(samples!AN$52>Right,samples!AN$52<Left),1,0) -> 0
B80: 68.88278069 | C80: 0.1264192468 | E80: 0 | F80: =samples!AN$53 -> 0.4742857143
B81: 68.91092255 | C81: 0.1094046878 | D81: 86 | E81: =samples!AO$52 -> 68.1 | F81: =samples!AO$52 -> 68.1 | G81: =IF(OR(samples!AO$52>Right,samples!AO$52<Left),1,0) -> 0
B82: 68.93906441 | C82: 0.09421729271 | E82: 0 | F82: =samples!AO$53 -> 0.4022893669
B83: 68.96720628 | C83: 0.08074158443 | D83: 88 | E83: =samples!AP$52 -> 68.04 | F83: =samples!AP$52 -> 68.04 | G83: =IF(OR(samples!AP$52>Right,samples!AP$52<Left),1,0) -> 0
B84: 68.99534814 | C84: 0.06885506162 | E84: 0 | F84: =samples!AP$53 -> 0.3658481898
B85: 69.02349 | C85: 0.05843141885 | D85: 90 | E85: =samples!AQ$52 -> 68.48 | F85: =samples!AQ$52 -> 68.48 | G85: =IF(OR(samples!AQ$52>Right,samples!AQ$52<Left),1,0) -> 0
B86: 69.05163187 | C86: 0.04934338622 | E86: 0 | F86: =samples!AQ$53 -> 0.400244823
B87: 69.07977373 | C87: 0.04146516757 | D87: 92 | E87: =samples!AR$52 -> 68.46 | F87: =samples!AR$52 -> 68.46 | G87: =IF(OR(samples!AR$52>Right,samples!AR$52<Left),1,0) -> 0
B88: 69.10791559 | C88: 0.034674472 | E88: 0 | F88: =samples!AR$53 -> 0.4608864573
B89: 69.13605745 | C89: 0.02885414737 | D89: 94 | E89: =samples!AS$52 -> 68.14 | F89: =samples!AS$52 -> 68.14 | G89: =IF(OR(samples!AS$52>Right,samples!AS$52<Left),1,0) -> 0
B90: 69.16419932 | C90: 0.0238934351 | E90: 0 | F90: =samples!AS$53 -> 0.436133288
B91: 69.19234118 | C91: 0.01968887468 | D91: 96 | E91: =samples!AT$52 -> 68.56 | F91: =samples!AT$52 -> 68.56 | G91: =IF(OR(samples!AT$52>Right,samples!AT$52<Left),1,0) -> 0
B92: 69.22048304 | C92: 0.01614489239 | E92: 0 | F92: =samples!AT$53 -> 0.3919183588
B93: 69.24862491 | C93: 0.01317411262 | D93: 98 | E93: =samples!AU$52 -> 67.42 | F93: =samples!AU$52 -> 67.42 | G93: =IF(OR(samples!AU$52>Right,samples!AU$52<Left),1,0) -> 0
B94: 69.27676677 | C94: 0.01069743228 | E94: 0 | F94: =samples!AU$53 -> 0.3659931972
B95: 69.30490863 | C95: 0.00864389887 | D95: 100 | E95: =samples!AV$52 -> 68.1 | F95: =samples!AV$52 -> 68.1 | G95: =IF(OR(samples!AV$52>Right,samples!AV$52<Left),1,0) -> 0
B96: 69.33305049 | C96: 0.006950431466 | E96: 0 | F96: =samples!AV$53 -> 0.3835920452
B97: 69.36119236 | C97: =NORMDIST(B97,mean,sd,FALSE) -> 0.005561421489 | D97: 102 | E97: =samples!AW$52 -> 68.28 | F97: =samples!AW$52 -> 68.28 | G97: =IF(OR(samples!AW$52>Right,samples!AW$52<Left),1,0) -> 0
B98: 69.38933422 | C98: =NORMDIST(B98,mean,sd,FALSE) -> 0.004428246754 | E98: 0 | F98: =samples!AW$53 -> 0.4130918759
B99: 69.41747608 | C99: =NORMDIST(B99,mean,sd,FALSE) -> 0.003508728563 | D99: 104 | E99: =samples!AX$52 -> 66.84 | F99: =samples!AX$52 -> 66.84 | G99: =IF(OR(samples!AX$52>Right,samples!AX$52<Left),1,0) -> 1
B100: 69.44561795 | C100: =NORMDIST(B100,mean,sd,FALSE) -> 0.002766557421 | E100: 0 | F100: =samples!AX$53 -> 0.4231659104
B101: 69.47375981 | C101: =NORMDIST(B101,mean,sd,FALSE) -> 0.002170708776 | D101: 106 | E101: =samples!AY$52 -> 67.74 | F101: =samples!AY$52 -> 67.74 | G101: =IF(OR(samples!AY$52>Right,samples!AY$52<Left),1,0) -> 0
E102: 0 | F102: =samples!AY$53 -> 0.3946685512
D103: 108 | E103: =samples!AZ$52 -> 68.48 | F103: =samples!AZ$52 -> 68.48 | G103: =IF(OR(samples!AZ$52>Right,samples!AZ$52<Left),1,0) -> 0
E104: 0 | F104: =samples!AZ$53 -> 0.4181982735
D105: 110 | E105: =samples!BA$52 -> 68.58 | F105: =samples!BA$52 -> 68.58 | G105: =IF(OR(samples!BA$52>Right,samples!BA$52<Left),1,0) -> 0
E106: 0 | F106: =samples!BA$53 -> 0.4572232072
D107: 112 | E107: =samples!BB$52 -> 67.94 | F107: =samples!BB$52 -> 67.94 | G107: =IF(OR(samples!BB$52>Right,samples!BB$52<Left),1,0) -> 0
E108: 0 | F108: =samples!BB$53 -> 0.4104850292
D109: 114 | E109: =samples!BC$52 -> 67.52 | F109: =samples!BC$52 -> 67.52 | G109: =IF(OR(samples!BC$52>Right,samples!BC$52<Left),1,0) -> 0
E110: 0 | F110: =samples!BC$53 -> 0.3738820069
D111: 116 | E111: =samples!BD$52 -> 68.04 | F111: =samples!BD$52 -> 68.04 | G111: =IF(OR(samples!BD$52>Right,samples!BD$52<Left),1,0) -> 0
E112: 0 | F112: =samples!BD$53 -> 0.3968858367
D113: 118 | E113: =samples!BE$52 -> 67.94 | F113: =samples!BE$52 -> 67.94 | G113: =IF(OR(samples!BE$52>Right,samples!BE$52<Left),1,0) -> 0
E114: 0 | F114: =samples!BE$53 -> 0.4439249799
D115: 120 | E115: =samples!BF$52 -> 68.3 | F115: =samples!BF$52 -> 68.3 | G115: =IF(OR(samples!BF$52>Right,samples!BF$52<Left),1,0) -> 0
E116: 0 | F116: =samples!BF$53 -> 0.4817061514
D117: 122 | E117: =samples!BG$52 -> 67.94 | F117: =samples!BG$52 -> 67.94 | G117: =IF(OR(samples!BG$52>Right,samples!BG$52<Left),1,0) -> 0
E118: 0 | F118: =samples!BG$53 -> 0.4222485969
D119: 124 | E119: =samples!BH$52 -> 68.36 | F119: =samples!BH$52 -> 68.36 | G119: =IF(OR(samples!BH$52>Right,samples!BH$52<Left),1,0) -> 0
E120: 0 | F120: =samples!BH$53 -> 0.4587115941
D121: 126 | E121: =samples!BI$52 -> 68 | F121: =samples!BI$52 -> 68 | G121: =IF(OR(samples!BI$52>Right,samples!BI$52<Left),1,0) -> 0
E122: 0 | F122: =samples!BI$53 -> 0.3938299643
D123: 128 | E123: =samples!BJ$52 -> 67.58 | F123: =samples!BJ$52 -> 67.58 | G123: =IF(OR(samples!BJ$52>Right,samples!BJ$52<Left),1,0) -> 0
E124: 0 | F124: =samples!BJ$53 -> 0.4445497608
D125: 130 | E125: =samples!BK$52 -> 68.08 | F125: =samples!BK$52 -> 68.08 | G125: =IF(OR(samples!BK$52>Right,samples!BK$52<Left),1,0) -> 0
E126: 0 | F126: =samples!BK$53 -> 0.3645965061
D127: 132 | E127: =samples!BL$52 -> 67.98 | F127: =samples!BL$52 -> 67.98 | G127: =IF(OR(samples!BL$52>Right,samples!BL$52<Left),1,0) -> 0
E128: 0 | F128: =samples!BL$53 -> 0.3481613513
D129: 134 | E129: =samples!BM$52 -> 67.96 | F129: =samples!BM$52 -> 67.96 | G129: =IF(OR(samples!BM$52>Right,samples!BM$52<Left),1,0) -> 0
E130: 0 | F130: =samples!BM$53 -> 0.3713846128
D131: 136 | E131: =samples!BN$52 -> 67.66 | F131: =samples!BN$52 -> 67.66 | G131: =IF(OR(samples!BN$52>Right,samples!BN$52<Left),1,0) -> 0
E132: 0 | F132: =samples!BN$53 -> 0.4904059127
D133: 138 | E133: =samples!BO$52 -> 68.54 | F133: =samples!BO$52 -> 68.54 | G133: =IF(OR(samples!BO$52>Right,samples!BO$52<Left),1,0) -> 0
E134: 0 | F134: =samples!BO$53 -> 0.3824838265
D135: 140 | E135: =samples!BP$52 -> 68.14 | F135: =samples!BP$52 -> 68.14 | G135: =IF(OR(samples!BP$52>Right,samples!BP$52<Left),1,0) -> 0
E136: 0 | F136: =samples!BP$53 -> 0.3647867703
D137: 142 | E137: =samples!BQ$52 -> 68.28 | F137: =samples!BQ$52 -> 68.28 | G137: =IF(OR(samples!BQ$52>Right,samples!BQ$52<Left),1,0) -> 0
E138: 0 | F138: =samples!BQ$53 -> 0.4160455234
D139: 144 | E139: =samples!BR$52 -> 68.08 | F139: =samples!BR$52 -> 68.08 | G139: =IF(OR(samples!BR$52>Right,samples!BR$52<Left),1,0) -> 0
E140: 0 | F140: =samples!BR$53 -> 0.4099178614
D141: 146 | E141: =samples!BS$52 -> 67.76 | F141: =samples!BS$52 -> 67.76 | G141: =IF(OR(samples!BS$52>Right,samples!BS$52<Left),1,0) -> 0
E142: 0 | F142: =samples!BS$53 -> 0.447724405
D143: 148 | E143: =samples!BT$52 -> 68.34 | F143: =samples!BT$52 -> 68.34 | G143: =IF(OR(samples!BT$52>Right,samples!BT$52<Left),1,0) -> 0
E144: 0 | F144: =samples!BT$53 -> 0.4036668661
D145: 150 | E145: =samples!BU$52 -> 68.24 | F145: =samples!BU$52 -> 68.24 | G145: =IF(OR(samples!BU$52>Right,samples!BU$52<Left),1,0) -> 0
E146: 0 | F146: =samples!BU$53 -> 0.4046263078
D147: 152 | E147: =samples!BV$52 -> 67.94 | F147: =samples!BV$52 -> 67.94 | G147: =IF(OR(samples!BV$52>Right,samples!BV$52<Left),1,0) -> 0
E148: 0 | F148: =samples!BV$53 -> 0.3685714286
D149: 154 | E149: =samples!BW$52 -> 67.66 | F149: =samples!BW$52 -> 67.66 | G149: =IF(OR(samples!BW$52>Right,samples!BW$52<Left),1,0) -> 0
E150: 0 | F150: =samples!BW$53 -> 0.4486806055
D151: 156 | E151: =samples!BX$52 -> 67.9 | F151: =samples!BX$52 -> 67.9 | G151: =IF(OR(samples!BX$52>Right,samples!BX$52<Left),1,0) -> 0
E152: 0 | F152: =samples!BX$53 -> 0.3793119442
D153: 158 | E153: =samples!BY$52 -> 68.44 | F153: =samples!BY$52 -> 68.44 | G153: =IF(OR(samples!BY$52>Right,samples!BY$52<Left),1,0) -> 0
E154: 0 | F154: =samples!BY$53 -> 0.3489459346
D155: 160 | E155: =samples!BZ$52 -> 68.48 | F155: =samples!BZ$52 -> 68.48 | G155: =IF(OR(samples!BZ$52>Right,samples!BZ$52<Left),1,0) -> 0
E156: 0 | F156: =samples!BZ$53 -> 0.4093199936
D157: 162 | E157: =samples!CA$52 -> 68.5 | F157: =samples!CA$52 -> 68.5 | G157: =IF(OR(samples!CA$52>Right,samples!CA$52<Left),1,0) -> 0
E158: 0 | F158: =samples!CA$53 -> 0.44008348
D159: 164 | E159: =samples!CB$52 -> 67.76 | F159: =samples!CB$52 -> 67.76 | G159: =IF(OR(samples!CB$52>Right,samples!CB$52<Left),1,0) -> 0
E160: 0 | F160: =samples!CB$53 -> 0.4375814793
A197: Left = | B197: =mean-$J$25*sd -> 67.12994466 | C197: =mean-$J$25*sd -> 67.12994466
B198: 0 | C198: 0.75
A199: Right= | B199: =mean+$J$25*sd -> 69.00338867 | C199: =mean+$J$25*sd -> 69.00338867
B200: 0 | C200: 0.75
E201: =HypoTests!F23 -> 68.07 | F201: =HypoTests!F23 -> 68.07
E202: 0.00 | F202: 0.9
